Workbook

Sheet Zakázka
C5: FORMULÁR PRE FORMÁTOVANIE
AG6: Na každý materiál treba vyplniť samostatný formulár!!!!!!!
C7: Názov projektu: | I7: ZAV-TAS príklad vyplnenia porezu
C8: Popis projektu: | I8: Kuchyňa
C9: Datum projektu: | I9: =NOW() -> 2020-03-09T16:33:51.830
C10: Materiál: | I10: H1180 egger
C11: Hrúbka: | I11: 18
C12: Dekor (textura): | I12: 1
C13: Olepenie: | I13: H1180 egger
C14: Značka olepenia: | I14: Hrúbka: | L14: Dĺžka (mm): | O14: Orez (mm): | R14: Predfréz (mm):
C15: E | I15: 2 | L15: =BD22 -> 530 | O15: 30 | R15: 0
C16: F | I16: 1 | L16: =BE22 -> 2320 | O16: 30 | R16: 0
C17: I | I17: 0.5 | L17: =BF22 -> 430 | O17: 30 | R17: 0
C19: Rozmer dielcov zadávejte vrátane olepenia ! | BG19: EXPORTNÍ
BB20: rozměr dílce | BD20: délka hrany | BG20: rozměr dílce
C21: Číslo | E21: Označenie dielu | M21: Dĺžka (Y) | P21: Šírka (X) | S21: Počet | U21: Číslo | W21: Olepenie hrany (E,F,I) | BB21: bez hrany | BD21: E | BE21: F | BF21: I | BG21: s predfrezem
C22: Dielu | E22: =CONCATENATE("počet dielov: ",COUNTIF(E23:E122,"*"),"ks") -> počet dielov: 4ks | M22: (mm) | P22: (mm) | S22: kusov | U22: skrine | W22: Y1 | Y22: Y2 | AA22: X1 | AC22: X2 | AG22: Poznámky: | BD22: =SUM(BD23:BD122) -> 530 | BE22: =SUM(BE23:BE122) -> 2320 | BF22: =SUM(BF23:BF122) -> 430
C23: 1 | E23: bok | M23: 800 | P23: 400 | S23: 1 | U23: 1 | W23: F | AA23: F | AC23: F | BA23: =IF(P23="","",CONCATENATE(IF(AA23="","N",AA23),IF(Y23="","N",Y23),IF(AC23="","N",AC23),IF(W23="","N",W23))) -> FNFF | BB23: =IF(ISBLANK(P23),CHAR(32),P23-(IF((W23="E"),$I$15,(IF((W23="F"),$I$16,(IF((W23="I"),$I$17,(IF((W23="C"),0.5,0))))))))-(IF((Y23="E"),$I$15,(IF((Y23="F"),$I$16,(IF((Y23="I"),$I$17,(IF((Y23="C"),0.5,0))))))))) -> 399 | BC23: =IF(ISBLANK(M23),CHAR(32),M23-(IF((AA23="E"),2,(IF((AA23="F"),1,(IF((AA23="I"),0.5,(IF((AA23="C"),0.5,0))))))))-(IF((AC23="E"),2,(IF((AC23="F"),1,(IF((AC23="I"),0.5,(IF((AC23="C"),0.5,0))))))))) -> 798 | BD23: =IF($C$15=MID(BA23,1,1),(P23+$O$15)*S23,0)+IF($C$15=MID(BA23,2,1),(M23+$O$15)*S23,0)+IF($C$15=MID(BA23,3,1),(P23+$O$15)*S23,0)+IF($C$15=MID(BA23,4,1),(M23+$O$15)*S23,0) -> 0 | BE23: =IF($C$16=MID(BA23,1,1),(P23+$O$16)*S23,0)+IF($C$16=MID(BA23,2,1),(M23+$O$16)*S23,0)+IF($C$16=MID(BA23,3,1),(P23+$O$16)*S23,0)+IF($C$16=MID(BA23,4,1),(M23+$O$16)*S23,0) -> 1690 | BF23: =IF($C$17=MID(BA23,1,1),(P23+$O$17)*S23,0)+IF($C$17=MID(BA23,2,1),(M23+$O$17)*S23,0)+IF($C$17=MID(BA23,3,1),(P23+$O$17)*S23,0)+IF($C$17=MID(BA23,4,1),(M23+$O$17)*S23,0) -> 0 | BG23: =IF(ISBLANK(P23),CHAR(32),BB23+(IF((W23="E"),$R$15,(IF((W23="F"),$R$16,(IF((W23="I"),$R$17,(IF((W23="C"),0.5,0))))))))+(IF((Y23="E"),$R$15,(IF((Y23="F"),$R$16,(IF((Y23="I"),$R$17,(IF((Y23="C"),0.5,0))))))))) -> 399 | BH23: =IF(ISBLANK(M23),CHAR(32),BC23+(IF((AA23="E"),$R$15,(IF((AA23="F"),$R$16,(IF((AA23="I"),$R$17,(IF((AA23="C"),0.5,0))))))))+(IF((AC23="E"),$R$15,(IF((AC23="F"),$R$16,(IF((AC23="I"),$R$17,(IF((AC23="C"),0.5,0))))))))) -> 798
C24: 2 | E24: dno | M24: 600 | P24: 400 | S24: 1 | U24: 1 | W24: F | BA24: =IF(P24="","",CONCATENATE(IF(AA24="","N",AA24),IF(Y24="","N",Y24),IF(AC24="","N",AC24),IF(W24="","N",W24))) -> NNNF | BB24: =IF(ISBLANK(P24),CHAR(32),P24-(IF((W24="E"),$I$15,(IF((W24="F"),$I$16,(IF((W24="I"),$I$17,(IF((W24="C"),0.5,0))))))))-(IF((Y24="E"),$I$15,(IF((Y24="F"),$I$16,(IF((Y24="I"),$I$17,(IF((Y24="C"),0.5,0))))))))) -> 399 | BC24: =IF(ISBLANK(M24),CHAR(32),M24-(IF((AA24="E"),2,(IF((AA24="F"),1,(IF((AA24="I"),0.5,(IF((AA24="C"),0.5,0))))))))-(IF((AC24="E"),2,(IF((AC24="F"),1,(IF((AC24="I"),0.5,(IF((AC24="C"),0.5,0))))))))) -> 600 | BD24: =IF($C$15=MID(BA24,1,1),(P24+$O$15)*S24,0)+IF($C$15=MID(BA24,2,1),(M24+$O$15)*S24,0)+IF($C$15=MID(BA24,3,1),(P24+$O$15)*S24,0)+IF($C$15=MID(BA24,4,1),(M24+$O$15)*S24,0) -> 0 | BE24: =IF($C$16=MID(BA24,1,1),(P24+$O$16)*S24,0)+IF($C$16=MID(BA24,2,1),(M24+$O$16)*S24,0)+IF($C$16=MID(BA24,3,1),(P24+$O$16)*S24,0)+IF($C$16=MID(BA24,4,1),(M24+$O$16)*S24,0) -> 630 | BF24: =IF($C$17=MID(BA24,1,1),(P24+$O$17)*S24,0)+IF($C$17=MID(BA24,2,1),(M24+$O$17)*S24,0)+IF($C$17=MID(BA24,3,1),(P24+$O$17)*S24,0)+IF($C$17=MID(BA24,4,1),(M24+$O$17)*S24,0) -> 0 | BG24: =IF(ISBLANK(P24),CHAR(32),BB24+(IF((W24="E"),$R$15,(IF((W24="F"),$R$16,(IF((W24="I"),$R$17,(IF((W24="C"),0.5,0))))))))+(IF((Y24="E"),$R$15,(IF((Y24="F"),$R$16,(IF((Y24="I"),$R$17,(IF((Y24="C"),0.5,0))))))))) -> 399 | BH24: =IF(ISBLANK(M24),CHAR(32),BC24+(IF((AA24="E"),$R$15,(IF((AA24="F"),$R$16,(IF((AA24="I"),$R$17,(IF((AA24="C"),0.5,0))))))))+(IF((AC24="E"),$R$15,(IF((AC24="F"),$R$16,(IF((AC24="I"),$R$17,(IF((AC24="C"),0.5,0))))))))) -> 600
C25: 3 | E25: medzistena | M25: 400 | P25: 600 | S25: 1 | U25: 1 | W25: I | BA25: =IF(P25="","",CONCATENATE(IF(AA25="","N",AA25),IF(Y25="","N",Y25),IF(AC25="","N",AC25),IF(W25="","N",W25))) -> NNNI | BB25: =IF(ISBLANK(P25),CHAR(32),P25-(IF((W25="E"),$I$15,(IF((W25="F"),$I$16,(IF((W25="I"),$I$17,(IF((W25="C"),0.5,0))))))))-(IF((Y25="E"),$I$15,(IF((Y25="F"),$I$16,(IF((Y25="I"),$I$17,(IF((Y25="C"),0.5,0))))))))) -> 599.5 | BC25: =IF(ISBLANK(M25),CHAR(32),M25-(IF((AA25="E"),2,(IF((AA25="F"),1,(IF((AA25="I"),0.5,(IF((AA25="C"),0.5,0))))))))-(IF((AC25="E"),2,(IF((AC25="F"),1,(IF((AC25="I"),0.5,(IF((AC25="C"),0.5,0))))))))) -> 400 | BD25: =IF($C$15=MID(BA25,1,1),(P25+$O$15)*S25,0)+IF($C$15=MID(BA25,2,1),(M25+$O$15)*S25,0)+IF($C$15=MID(BA25,3,1),(P25+$O$15)*S25,0)+IF($C$15=MID(BA25,4,1),(M25+$O$15)*S25,0) -> 0 | BE25: =IF($C$16=MID(BA25,1,1),(P25+$O$16)*S25,0)+IF($C$16=MID(BA25,2,1),(M25+$O$16)*S25,0)+IF($C$16=MID(BA25,3,1),(P25+$O$16)*S25,0)+IF($C$16=MID(BA25,4,1),(M25+$O$16)*S25,0) -> 0 | BF25: =IF($C$17=MID(BA25,1,1),(P25+$O$17)*S25,0)+IF($C$17=MID(BA25,2,1),(M25+$O$17)*S25,0)+IF($C$17=MID(BA25,3,1),(P25+$O$17)*S25,0)+IF($C$17=MID(BA25,4,1),(M25+$O$17)*S25,0) -> 430 | BG25: =IF(ISBLANK(P25),CHAR(32),BB25+(IF((W25="E"),$R$15,(IF((W25="F"),$R$16,(IF((W25="I"),$R$17,(IF((W25="C"),0.5,0))))))))+(IF((Y25="E"),$R$15,(IF((Y25="F"),$R$16,(IF((Y25="I"),$R$17,(IF((Y25="C"),0.5,0))))))))) -> 599.5 | BH25: =IF(ISBLANK(M25),CHAR(32),BC25+(IF((AA25="E"),$R$15,(IF((AA25="F"),$R$16,(IF((AA25="I"),$R$17,(IF((AA25="C"),0.5,0))))))))+(IF((AC25="E"),$R$15,(IF((AC25="F"),$R$16,(IF((AC25="I"),$R$17,(IF((AC25="C"),0.5,0))))))))) -> 400
C26: 4 | E26: medzistena | M26: 500 | P26: 800 | S26: 1 | U26: 1 | W26: E | AG26: Dupla H1181/H1181 alebo H1181/W980 | BA26: NNNE | BB26: 798 | BC26: 500 | BD26: 530 | BE26: 0 | BF26: 0 | BG26: 798 | BH26: 500
C27: 5 | BD27: 0 | BE27: 0 | BF27: 0
C28: 6 | BD28: 0 | BE28: 0 | BF28: 0
C29: 7 | BD29: 0 | BE29: 0 | BF29: 0
C30: 8 | BD30: 0 | BE30: 0 | BF30: 0
C31: 9 | BA31: =IF(P31="","",CONCATENATE(IF(AA31="","N",AA31),IF(Y31="","N",Y31),IF(AC31="","N",AC31),IF(W31="","N",W31))) ->  | BB31: =IF(ISBLANK(P31),CHAR(32),P31-(IF((W31="E"),$I$15,(IF((W31="F"),$I$16,(IF((W31="I"),$I$17,(IF((W31="C"),0.5,0))))))))-(IF((Y31="E"),$I$15,(IF((Y31="F"),$I$16,(IF((Y31="I"),$I$17,(IF((Y31="C"),0.5,0))))))))) ->  | BC31: =IF(ISBLANK(M31),CHAR(32),M31-(IF((AA31="E"),2,(IF((AA31="F"),1,(IF((AA31="I"),0.5,(IF((AA31="C"),0.5,0))))))))-(IF((AC31="E"),2,(IF((AC31="F"),1,(IF((AC31="I"),0.5,(IF((AC31="C"),0.5,0))))))))) ->  | BD31: =IF($C$15=MID(BA31,1,1),(P31+$O$15)*S31,0)+IF($C$15=MID(BA31,2,1),(M31+$O$15)*S31,0)+IF($C$15=MID(BA31,3,1),(P31+$O$15)*S31,0)+IF($C$15=MID(BA31,4,1),(M31+$O$15)*S31,0) -> 0 | BE31: =IF($C$16=MID(BA31,1,1),(P31+$O$16)*S31,0)+IF($C$16=MID(BA31,2,1),(M31+$O$16)*S31,0)+IF($C$16=MID(BA31,3,1),(P31+$O$16)*S31,0)+IF($C$16=MID(BA31,4,1),(M31+$O$16)*S31,0) -> 0 | BF31: =IF($C$17=MID(BA31,1,1),(P31+$O$17)*S31,0)+IF($C$17=MID(BA31,2,1),(M31+$O$17)*S31,0)+IF($C$17=MID(BA31,3,1),(P31+$O$17)*S31,0)+IF($C$17=MID(BA31,4,1),(M31+$O$17)*S31,0) -> 0 | BG31: =IF(ISBLANK(P31),CHAR(32),BB31+(IF((W31="E"),$R$15,(IF((W31="F"),$R$16,(IF((W31="I"),$R$17,(IF((W31="C"),0.5,0))))))))+(IF((Y31="E"),$R$15,(IF((Y31="F"),$R$16,(IF((Y31="I"),$R$17,(IF((Y31="C"),0.5,0))))))))) ->  | BH31: =IF(ISBLANK(M31),CHAR(32),BC31+(IF((AA31="E"),$R$15,(IF((AA31="F"),$R$16,(IF((AA31="I"),$R$17,(IF((AA31="C"),0.5,0))))))))+(IF((AC31="E"),$R$15,(IF((AC31="F"),$R$16,(IF((AC31="I"),$R$17,(IF((AC31="C"),0.5,0))))))))) -> 
C32: 10 | BA32: =IF(P32="","",CONCATENATE(IF(AA32="","N",AA32),IF(Y32="","N",Y32),IF(AC32="","N",AC32),IF(W32="","N",W32))) ->  | BB32: =IF(ISBLANK(P32),CHAR(32),P32-(IF((W32="E"),$I$15,(IF((W32="F"),$I$16,(IF((W32="I"),$I$17,(IF((W32="C"),0.5,0))))))))-(IF((Y32="E"),$I$15,(IF((Y32="F"),$I$16,(IF((Y32="I"),$I$17,(IF((Y32="C"),0.5,0))))))))) ->  | BC32: =IF(ISBLANK(M32),CHAR(32),M32-(IF((AA32="E"),2,(IF((AA32="F"),1,(IF((AA32="I"),0.5,(IF((AA32="C"),0.5,0))))))))-(IF((AC32="E"),2,(IF((AC32="F"),1,(IF((AC32="I"),0.5,(IF((AC32="C"),0.5,0))))))))) ->  | BD32: =IF($C$15=MID(BA32,1,1),(P32+$O$15)*S32,0)+IF($C$15=MID(BA32,2,1),(M32+$O$15)*S32,0)+IF($C$15=MID(BA32,3,1),(P32+$O$15)*S32,0)+IF($C$15=MID(BA32,4,1),(M32+$O$15)*S32,0) -> 0 | BE32: =IF($C$16=MID(BA32,1,1),(P32+$O$16)*S32,0)+IF($C$16=MID(BA32,2,1),(M32+$O$16)*S32,0)+IF($C$16=MID(BA32,3,1),(P32+$O$16)*S32,0)+IF($C$16=MID(BA32,4,1),(M32+$O$16)*S32,0) -> 0 | BF32: =IF($C$17=MID(BA32,1,1),(P32+$O$17)*S32,0)+IF($C$17=MID(BA32,2,1),(M32+$O$17)*S32,0)+IF($C$17=MID(BA32,3,1),(P32+$O$17)*S32,0)+IF($C$17=MID(BA32,4,1),(M32+$O$17)*S32,0) -> 0 | BG32: =IF(ISBLANK(P32),CHAR(32),BB32+(IF((W32="E"),$R$15,(IF((W32="F"),$R$16,(IF((W32="I"),$R$17,(IF((W32="C"),0.5,0))))))))+(IF((Y32="E"),$R$15,(IF((Y32="F"),$R$16,(IF((Y32="I"),$R$17,(IF((Y32="C"),0.5,0))))))))) ->  | BH32: =IF(ISBLANK(M32),CHAR(32),BC32+(IF((AA32="E"),$R$15,(IF((AA32="F"),$R$16,(IF((AA32="I"),$R$17,(IF((AA32="C"),0.5,0))))))))+(IF((AC32="E"),$R$15,(IF((AC32="F"),$R$16,(IF((AC32="I"),$R$17,(IF((AC32="C"),0.5,0))))))))) -> 
C33: 11 | BD33: 0 | BE33: 0 | BF33: 0
C34: 12 | BD34: 0 | BE34: 0 | BF34: 0
C35: 13 | BD35: 0 | BE35: 0 | BF35: 0
C36: 14 | BD36: 0 | BE36: 0 | BF36: 0
C37: 15 | BD37: 0 | BE37: 0 | BF37: 0
C38: 16 | BD38: 0 | BE38: 0 | BF38: 0
C39: 17 | BD39: 0 | BE39: 0 | BF39: 0
C40: 18 | BD40: 0 | BE40: 0 | BF40: 0
C41: 19 | BD41: 0 | BE41: 0 | BF41: 0
C42: 20 | BD42: 0 | BE42: 0 | BF42: 0
C43: 21 | BD43: 0 | BE43: 0 | BF43: 0
C44: 22 | BD44: 0 | BE44: 0 | BF44: 0
C45: 23 | BD45: 0 | BE45: 0 | BF45: 0
C46: 24 | BD46: 0 | BE46: 0 | BF46: 0
C47: 25 | BD47: 0 | BE47: 0 | BF47: 0
C48: 26 | BD48: 0 | BE48: 0 | BF48: 0
C49: 27 | BD49: 0 | BE49: 0 | BF49: 0
C50: 28 | BD50: 0 | BE50: 0 | BF50: 0
C51: 29 | BD51: 0 | BE51: 0 | BF51: 0
C52: 30 | BD52: 0 | BE52: 0 | BF52: 0
C53: 31 | BD53: 0 | BE53: 0 | BF53: 0
C54: 32 | BD54: 0 | BE54: 0 | BF54: 0
C55: 33 | BD55: 0 | BE55: 0 | BF55: 0
C56: 34 | BD56: 0 | BE56: 0 | BF56: 0
C57: 35 | BD57: 0 | BE57: 0 | BF57: 0
C58: 36 | BD58: 0 | BE58: 0 | BF58: 0
C59: 37 | BD59: 0 | BE59: 0 | BF59: 0
C60: 38 | BD60: 0 | BE60: 0 | BF60: 0
C61: 39 | BD61: 0 | BE61: 0 | BF61: 0
C62: 40 | BD62: 0 | BE62: 0 | BF62: 0
C63: 41 | BD63: 0 | BE63: 0 | BF63: 0
C64: 42 | BD64: 0 | BE64: 0 | BF64: 0
C65: 43 | BD65: 0 | BE65: 0 | BF65: 0
C66: 44 | BD66: 0 | BE66: 0 | BF66: 0
C67: 45 | BD67: 0 | BE67: 0 | BF67: 0
C68: 46 | BD68: 0 | BE68: 0 | BF68: 0
C69: 47 | BD69: 0 | BE69: 0 | BF69: 0
C70: 48 | BD70: 0 | BE70: 0 | BF70: 0
C71: 49 | BD71: 0 | BE71: 0 | BF71: 0
C72: 50 | BD72: 0 | BE72: 0 | BF72: 0
C73: 51 | BD73: 0 | BE73: 0 | BF73: 0
C74: 52 | BD74: 0 | BE74: 0 | BF74: 0
C75: 53 | BD75: 0 | BE75: 0 | BF75: 0
C76: 54 | BD76: 0 | BE76: 0 | BF76: 0
C77: 55 | BD77: 0 | BE77: 0 | BF77: 0
C78: 56 | BD78: 0 | BE78: 0 | BF78: 0
C79: 57 | BD79: 0 | BE79: 0 | BF79: 0
C80: 58 | BD80: 0 | BE80: 0 | BF80: 0
C81: 59 | BD81: 0 | BE81: 0 | BF81: 0
C82: 60 | BD82: 0 | BE82: 0 | BF82: 0
C83: 61 | BD83: 0 | BE83: 0 | BF83: 0
C84: 62 | BD84: 0 | BE84: 0 | BF84: 0
C85: 63 | BD85: 0 | BE85: 0 | BF85: 0
C86: 64 | BD86: 0 | BE86: 0 | BF86: 0
C87: 65 | BD87: 0 | BE87: 0 | BF87: 0
C88: 66 | BD88: 0 | BE88: 0 | BF88: 0
C89: 67 | BD89: 0 | BE89: 0 | BF89: 0
C90: 68 | BD90: 0 | BE90: 0 | BF90: 0
C91: 69 | BD91: 0 | BE91: 0 | BF91: 0
C92: 70 | BD92: 0 | BE92: 0 | BF92: 0
C93: 71 | BD93: 0 | BE93: 0 | BF93: 0
C94: 72 | BD94: 0 | BE94: 0 | BF94: 0
C95: 73 | BD95: 0 | BE95: 0 | BF95: 0
C96: 74 | BA96: =IF(P96="","",CONCATENATE(IF(AA96="","N",AA96),IF(Y96="","N",Y96),IF(AC96="","N",AC96),IF(W96="","N",W96))) ->  | BB96: =IF(ISBLANK(P96),CHAR(32),P96-(IF((W96="E"),$I$15,(IF((W96="F"),$I$16,(IF((W96="I"),$I$17,(IF((W96="C"),0.5,0))))))))-(IF((Y96="E"),$I$15,(IF((Y96="F"),$I$16,(IF((Y96="I"),$I$17,(IF((Y96="C"),0.5,0))))))))) ->  | BC96: =IF(ISBLANK(M96),CHAR(32),M96-(IF((AA96="E"),2,(IF((AA96="F"),1,(IF((AA96="I"),0.5,(IF((AA96="C"),0.5,0))))))))-(IF((AC96="E"),2,(IF((AC96="F"),1,(IF((AC96="I"),0.5,(IF((AC96="C"),0.5,0))))))))) ->  | BD96: =IF($C$15=MID(BA96,1,1),(P96+$O$15)*S96,0)+IF($C$15=MID(BA96,2,1),(M96+$O$15)*S96,0)+IF($C$15=MID(BA96,3,1),(P96+$O$15)*S96,0)+IF($C$15=MID(BA96,4,1),(M96+$O$15)*S96,0) -> 0 | BE96: =IF($C$16=MID(BA96,1,1),(P96+$O$16)*S96,0)+IF($C$16=MID(BA96,2,1),(M96+$O$16)*S96,0)+IF($C$16=MID(BA96,3,1),(P96+$O$16)*S96,0)+IF($C$16=MID(BA96,4,1),(M96+$O$16)*S96,0) -> 0 | BF96: =IF($C$17=MID(BA96,1,1),(P96+$O$17)*S96,0)+IF($C$17=MID(BA96,2,1),(M96+$O$17)*S96,0)+IF($C$17=MID(BA96,3,1),(P96+$O$17)*S96,0)+IF($C$17=MID(BA96,4,1),(M96+$O$17)*S96,0) -> 0 | BG96: =IF(ISBLANK(P96),CHAR(32),BB96+(IF((W96="E"),$R$15,(IF((W96="F"),$R$16,(IF((W96="I"),$R$17,(IF((W96="C"),0.5,0))))))))+(IF((Y96="E"),$R$15,(IF((Y96="F"),$R$16,(IF((Y96="I"),$R$17,(IF((Y96="C"),0.5,0))))))))) ->  | BH96: =IF(ISBLANK(M96),CHAR(32),BC96+(IF((AA96="E"),$R$15,(IF((AA96="F"),$R$16,(IF((AA96="I"),$R$17,(IF((AA96="C"),0.5,0))))))))+(IF((AC96="E"),$R$15,(IF((AC96="F"),$R$16,(IF((AC96="I"),$R$17,(IF((AC96="C"),0.5,0))))))))) -> 
C97: 75 | BD97: 0 | BE97: 0 | BF97: 0
C98: 76 | BD98: 0 | BE98: 0 | BF98: 0
C99: 77 | BD99: 0 | BE99: 0 | BF99: 0
C100: 78 | BD100: 0 | BE100: 0 | BF100: 0
C101: 79 | BD101: 0 | BE101: 0 | BF101: 0
C102: 80 | BD102: 0 | BE102: 0 | BF102: 0
C103: 81 | BD103: 0 | BE103: 0 | BF103: 0
C104: 82 | BD104: 0 | BE104: 0 | BF104: 0
C105: 83 | BD105: 0 | BE105: 0 | BF105: 0
C106: 84 | BD106: 0 | BE106: 0 | BF106: 0
C107: 85 | BD107: 0 | BE107: 0 | BF107: 0
C108: 86 | BD108: 0 | BE108: 0 | BF108: 0
C109: 87 | BD109: 0 | BE109: 0 | BF109: 0
C110: 88 | BD110: 0 | BE110: 0 | BF110: 0
C111: 89 | BD111: 0 | BE111: 0 | BF111: 0
C112: 90 | BD112: 0 | BE112: 0 | BF112: 0
C113: 91 | BD113: 0 | BE113: 0 | BF113: 0
C114: 92 | BD114: 0 | BE114: 0 | BF114: 0
C115: 93 | BD115: 0 | BE115: 0 | BF115: 0
C116: 94 | BD116: 0 | BE116: 0 | BF116: 0
C117: 95 | BD117: 0 | BE117: 0 | BF117: 0
C118: 96 | BD118: 0 | BE118: 0 | BF118: 0
C119: 97 | BD119: 0 | BE119: 0 | BF119: 0
C120: 98 | BD120: 0 | BE120: 0 | BF120: 0
C121: 99 | BD121: 0 | BE121: 0 | BF121: 0
BD122: 0 | BE122: 0 | BF122: 0
BA123: =IF(P123="","",CONCATENATE(IF(AA123="","N",AA123),IF(Y123="","N",Y123),IF(AC123="","N",AC123),IF(W123="","N",W123))) ->  | BB123: =IF(ISBLANK(P123),CHAR(32),P123-(IF((W123="E"),$I$15,(IF((W123="F"),$I$16,(IF((W123="I"),$I$17,(IF((W123="C"),0.5,0))))))))-(IF((Y123="E"),$I$15,(IF((Y123="F"),$I$16,(IF((Y123="I"),$I$17,(IF((Y123="C"),0.5,0))))))))) ->  | BC123: =IF(ISBLANK(M123),CHAR(32),M123-(IF((AA123="E"),2,(IF((AA123="F"),1,(IF((AA123="I"),0.5,(IF((AA123="C"),0.5,0))))))))-(IF((AC123="E"),2,(IF((AC123="F"),1,(IF((AC123="I"),0.5,(IF((AC123="C"),0.5,0))))))))) ->  | BD123: =IF($C$15=MID(BA123,1,1),(P123+$O$15)*S123,0)+IF($C$15=MID(BA123,2,1),(M123+$O$15)*S123,0)+IF($C$15=MID(BA123,3,1),(P123+$O$15)*S123,0)+IF($C$15=MID(BA123,4,1),(M123+$O$15)*S123,0) -> 0 | BE123: =IF($C$16=MID(BA123,1,1),(P123+$O$16)*S123,0)+IF($C$16=MID(BA123,2,1),(M123+$O$16)*S123,0)+IF($C$16=MID(BA123,3,1),(P123+$O$16)*S123,0)+IF($C$16=MID(BA123,4,1),(M123+$O$16)*S123,0) -> 0 | BF123: =IF($C$17=MID(BA123,1,1),(P123+$O$17)*S123,0)+IF($C$17=MID(BA123,2,1),(M123+$O$17)*S123,0)+IF($C$17=MID(BA123,3,1),(P123+$O$17)*S123,0)+IF($C$17=MID(BA123,4,1),(M123+$O$17)*S123,0) -> 0 | BG123: =IF(ISBLANK(P123),CHAR(32),BB123+(IF((W123="E"),$R$15,(IF((W123="F"),$R$16,(IF((W123="I"),$R$17,(IF((W123="C"),0.5,0))))))))+(IF((Y123="E"),$R$15,(IF((Y123="F"),$R$16,(IF((Y123="I"),$R$17,(IF((Y123="C"),0.5,0))))))))) ->  | BH123: =IF(ISBLANK(M123),CHAR(32),BC123+(IF((AA123="E"),$R$15,(IF((AA123="F"),$R$16,(IF((AA123="I"),$R$17,(IF((AA123="C"),0.5,0))))))))+(IF((AC123="E"),$R$15,(IF((AC123="F"),$R$16,(IF((AC123="I"),$R$17,(IF((AC123="C"),0.5,0))))))))) -> 
BD124: 0 | BE124: 0 | BF124: 0
BD125: 0 | BE125: 0 | BF125: 0

Sheet Nastavení
A1: Jednotky: | B1: MM
A5: Výběr: | B5: 1
B6: 0

Sheet CADImport
A1: =CONCATENATE("^Job : ",CLEAN(Zakázka!I7)) -> ^Job : ZAV-TAS príklad vyplnenia porezu
A2: =CONCATENATE("^Description : ",Zakázka!I8) -> ^Description : Kuchyňa
A3: =CONCATENATE("^Date : ",TEXT(Zakázka!I9,"dd.m. (hh:mm)")) -> ^Date : 09.3. (16:33)
A4: =CONCATENATE("^Parts : ",COUNTIF(Zakázka!E23:'Zakázka'!E122,"*")) -> ^Parts : 4
A5: =CONCATENATE("^Unit : ","MM") -> ^Unit : MM
A6: Banding | B6: =IF(ISBLANK(Zakázka!C15),CHAR(32),Zakázka!C15) -> E | C6: =IF(ISBLANK(Zakázka!$I$13)," ",Zakázka!$I$13 & IFERROR(" " & VLOOKUP($B6,Zakázka!$C$15:$K$18,7,0),"")) -> H1180 egger 2 | E6: =Zakázka!I15 -> 2
A7: Banding | B7: =IF(ISBLANK(Zakázka!C16),CHAR(32),Zakázka!C16) -> F | C7: =IF(ISBLANK(Zakázka!$I$13)," ",Zakázka!$I$13 & IFERROR(" " & VLOOKUP($B7,Zakázka!$C$15:$K$18,7,0),"")) -> H1180 egger 1 | E7: =Zakázka!I16 -> 1
A8: Banding | B8: =IF(ISBLANK(Zakázka!C17),CHAR(32),Zakázka!C17) -> I | C8: =IF(ISBLANK(Zakázka!$I$13)," ",Zakázka!$I$13 & IFERROR(" " & VLOOKUP($B8,Zakázka!$C$15:$K$18,7,0),"")) -> H1180 egger 0.5 | E8: =Zakázka!I17 -> 0.5 | O8: =CHAR(32) -> 
A9: Banding | B9: C | C9: =IF(ISBLANK(Zakázka!$I$13)," ",Zakázka!$I$13 & IFERROR(" " & VLOOKUP($B9,Zakázka!$C$15:$K$18,7,0),"")) -> H1180 egger | E9: =Zakázka!I17 -> 0.5
A10: =IF(ISBLANK(Zakázka!E23),CHAR(94),IF(ISTEXT(Zakázka!E23),CHAR(32),Zakázka!E23)) ->  | B10: =IF(ISBLANK(Zakázka!E23),CHAR(32),Zakázka!E23) -> bok | C10: =IF(ISBLANK(Zakázka!BG23),CHAR(32),Zakázka!BG23) -> 399 | D10: =IF(ISBLANK(Zakázka!BH23),CHAR(32),Zakázka!BH23) -> 798 | E10: =IF(ISBLANK(Zakázka!E23),CHAR(32),Zakázka!$I$11) -> 18 | F10: =IF(ISBLANK(Zakázka!E23),CHAR(32),Zakázka!$I$10) -> H1180 egger | G10: =IF(ISBLANK(Zakázka!U23),CHAR(32),Zakázka!U23) -> 1 | H10: =IF(ISBLANK(Zakázka!S23),CHAR(32),Zakázka!S23) -> 1 | I10: =IF(ISBLANK(Zakázka!E23),CHAR(32),(Zakázka!$I$12)) -> 1 | L10: =IF(ISBLANK(Zakázka!BA23),CHAR(32),Zakázka!BA23) -> FNFF
A11: =IF(ISBLANK(Zakázka!E24),CHAR(94),IF(ISTEXT(Zakázka!E24),CHAR(32),Zakázka!E24)) ->  | B11: =IF(ISBLANK(Zakázka!E24),CHAR(32),Zakázka!E24) -> dno | C11: =IF(ISBLANK(Zakázka!BG24),CHAR(32),Zakázka!BG24) -> 399 | D11: =IF(ISBLANK(Zakázka!BH24),CHAR(32),Zakázka!BH24) -> 600 | E11: =IF(ISBLANK(Zakázka!E24),CHAR(32),Zakázka!$I$11) -> 18 | F11: =IF(ISBLANK(Zakázka!E24),CHAR(32),Zakázka!$I$10) -> H1180 egger | G11: =IF(ISBLANK(Zakázka!U24),CHAR(32),Zakázka!U24) -> 1 | H11: =IF(ISBLANK(Zakázka!S24),CHAR(32),Zakázka!S24) -> 1 | I11: =IF(ISBLANK(Zakázka!E24),CHAR(32),(Zakázka!$I$12)) -> 1 | L11: =IF(ISBLANK(Zakázka!BA24),CHAR(32),Zakázka!BA24) -> NNNF
A12: =IF(ISBLANK(Zakázka!E25),CHAR(94),IF(ISTEXT(Zakázka!E25),CHAR(32),Zakázka!E25)) ->  | B12: =IF(ISBLANK(Zakázka!E25),CHAR(32),Zakázka!E25) -> medzistena | C12: =IF(ISBLANK(Zakázka!BG25),CHAR(32),Zakázka!BG25) -> 599.5 | D12: =IF(ISBLANK(Zakázka!BH25),CHAR(32),Zakázka!BH25) -> 400 | E12: =IF(ISBLANK(Zakázka!E25),CHAR(32),Zakázka!$I$11) -> 18 | F12: =IF(ISBLANK(Zakázka!E25),CHAR(32),Zakázka!$I$10) -> H1180 egger | G12: =IF(ISBLANK(Zakázka!U25),CHAR(32),Zakázka!U25) -> 1 | H12: =IF(ISBLANK(Zakázka!S25),CHAR(32),Zakázka!S25) -> 1 | I12: =IF(ISBLANK(Zakázka!E25),CHAR(32),(Zakázka!$I$12)) -> 1 | L12: =IF(ISBLANK(Zakázka!BA25),CHAR(32),Zakázka!BA25) -> NNNI
A13: =IF(ISBLANK(Zakázka!E26),CHAR(94),IF(ISTEXT(Zakázka!E26),CHAR(32),Zakázka!E26)) ->  | B13: =IF(ISBLANK(Zakázka!E26),CHAR(32),Zakázka!E26) -> medzistena | C13: =IF(ISBLANK(Zakázka!BG26),CHAR(32),Zakázka!BG26) -> 798 | D13: =IF(ISBLANK(Zakázka!BH26),CHAR(32),Zakázka!BH26) -> 500 | E13: =IF(ISBLANK(Zakázka!E26),CHAR(32),Zakázka!$I$11) -> 18 | F13: =IF(ISBLANK(Zakázka!E26),CHAR(32),Zakázka!$I$10) -> H1180 egger | G13: =IF(ISBLANK(Zakázka!U26),CHAR(32),Zakázka!U26) -> 1 | H13: =IF(ISBLANK(Zakázka!S26),CHAR(32),Zakázka!S26) -> 1 | I13: =IF(ISBLANK(Zakázka!E26),CHAR(32),(Zakázka!$I$12)) -> 1 | L13: =IF(ISBLANK(Zakázka!BA26),CHAR(32),Zakázka!BA26) -> NNNE
A14: =IF(ISBLANK(Zakázka!E27),CHAR(94),IF(ISTEXT(Zakázka!E27),CHAR(32),Zakázka!E27)) -> ^ | B14: =IF(ISBLANK(Zakázka!E27),CHAR(32),Zakázka!E27) ->  | C14: =IF(ISBLANK(Zakázka!BG27),CHAR(32),Zakázka!BG27) ->  | D14: =IF(ISBLANK(Zakázka!BH27),CHAR(32),Zakázka!BH27) ->  | E14: =IF(ISBLANK(Zakázka!E27),CHAR(32),Zakázka!$I$11) ->  | F14: =IF(ISBLANK(Zakázka!E27),CHAR(32),Zakázka!$I$10) ->  | G14: =IF(ISBLANK(Zakázka!U27),CHAR(32),Zakázka!U27) ->  | H14: =IF(ISBLANK(Zakázka!S27),CHAR(32),Zakázka!S27) ->  | I14: =IF(ISBLANK(Zakázka!E27),CHAR(32),(Zakázka!$I$12)) ->  | L14: =IF(ISBLANK(Zakázka!BA27),CHAR(32),Zakázka!BA27) -> 
A15: =IF(ISBLANK(Zakázka!E28),CHAR(94),IF(ISTEXT(Zakázka!E28),CHAR(32),Zakázka!E28)) -> ^ | B15: =IF(ISBLANK(Zakázka!E28),CHAR(32),Zakázka!E28) ->  | C15: =IF(ISBLANK(Zakázka!BG28),CHAR(32),Zakázka!BG28) ->  | D15: =IF(ISBLANK(Zakázka!BH28),CHAR(32),Zakázka!BH28) ->  | E15: =IF(ISBLANK(Zakázka!E28),CHAR(32),Zakázka!$I$11) ->  | F15: =IF(ISBLANK(Zakázka!E28),CHAR(32),Zakázka!$I$10) ->  | G15: =IF(ISBLANK(Zakázka!U28),CHAR(32),Zakázka!U28) ->  | H15: =IF(ISBLANK(Zakázka!S28),CHAR(32),Zakázka!S28) ->  | I15: =IF(ISBLANK(Zakázka!E28),CHAR(32),(Zakázka!$I$12)) ->  | L15: =IF(ISBLANK(Zakázka!BA28),CHAR(32),Zakázka!BA28) -> 
A16: =IF(ISBLANK(Zakázka!E29),CHAR(94),IF(ISTEXT(Zakázka!E29),CHAR(32),Zakázka!E29)) -> ^ | B16: =IF(ISBLANK(Zakázka!E29),CHAR(32),Zakázka!E29) ->  | C16: =IF(ISBLANK(Zakázka!BG29),CHAR(32),Zakázka!BG29) ->  | D16: =IF(ISBLANK(Zakázka!BH29),CHAR(32),Zakázka!BH29) ->  | E16: =IF(ISBLANK(Zakázka!E29),CHAR(32),Zakázka!$I$11) ->  | F16: =IF(ISBLANK(Zakázka!E29),CHAR(32),Zakázka!$I$10) ->  | G16: =IF(ISBLANK(Zakázka!U29),CHAR(32),Zakázka!U29) ->  | H16: =IF(ISBLANK(Zakázka!S29),CHAR(32),Zakázka!S29) ->  | I16: =IF(ISBLANK(Zakázka!E29),CHAR(32),(Zakázka!$I$12)) ->  | L16: =IF(ISBLANK(Zakázka!BA29),CHAR(32),Zakázka!BA29) -> 
A17: =IF(ISBLANK(Zakázka!E30),CHAR(94),IF(ISTEXT(Zakázka!E30),CHAR(32),Zakázka!E30)) -> ^ | B17: =IF(ISBLANK(Zakázka!E30),CHAR(32),Zakázka!E30) ->  | C17: =IF(ISBLANK(Zakázka!BG30),CHAR(32),Zakázka!BG30) ->  | D17: =IF(ISBLANK(Zakázka!BH30),CHAR(32),Zakázka!BH30) ->  | E17: =IF(ISBLANK(Zakázka!E30),CHAR(32),Zakázka!$I$11) ->  | F17: =IF(ISBLANK(Zakázka!E30),CHAR(32),Zakázka!$I$10) ->  | G17: =IF(ISBLANK(Zakázka!U30),CHAR(32),Zakázka!U30) ->  | H17: =IF(ISBLANK(Zakázka!S30),CHAR(32),Zakázka!S30) ->  | I17: =IF(ISBLANK(Zakázka!E30),CHAR(32),(Zakázka!$I$12)) ->  | L17: =IF(ISBLANK(Zakázka!BA30),CHAR(32),Zakázka!BA30) -> 
A18: =IF(ISBLANK(Zakázka!E31),CHAR(94),IF(ISTEXT(Zakázka!E31),CHAR(32),Zakázka!E31)) -> ^ | B18: =IF(ISBLANK(Zakázka!E31),CHAR(32),Zakázka!E31) ->  | C18: =IF(ISBLANK(Zakázka!BG31),CHAR(32),Zakázka!BG31) ->  | D18: =IF(ISBLANK(Zakázka!BH31),CHAR(32),Zakázka!BH31) ->  | E18: =IF(ISBLANK(Zakázka!E31),CHAR(32),Zakázka!$I$11) ->  | F18: =IF(ISBLANK(Zakázka!E31),CHAR(32),Zakázka!$I$10) ->  | G18: =IF(ISBLANK(Zakázka!U31),CHAR(32),Zakázka!U31) ->  | H18: =IF(ISBLANK(Zakázka!S31),CHAR(32),Zakázka!S31) ->  | I18: =IF(ISBLANK(Zakázka!E31),CHAR(32),(Zakázka!$I$12)) ->  | L18: =IF(ISBLANK(Zakázka!BA31),CHAR(32),Zakázka!BA31) -> 
A19: =IF(ISBLANK(Zakázka!E32),CHAR(94),IF(ISTEXT(Zakázka!E32),CHAR(32),Zakázka!E32)) -> ^ | B19: =IF(ISBLANK(Zakázka!E32),CHAR(32),Zakázka!E32) ->  | C19: =IF(ISBLANK(Zakázka!BG32),CHAR(32),Zakázka!BG32) ->  | D19: =IF(ISBLANK(Zakázka!BH32),CHAR(32),Zakázka!BH32) ->  | E19: =IF(ISBLANK(Zakázka!E32),CHAR(32),Zakázka!$I$11) ->  | F19: =IF(ISBLANK(Zakázka!E32),CHAR(32),Zakázka!$I$10) ->  | G19: =IF(ISBLANK(Zakázka!U32),CHAR(32),Zakázka!U32) ->  | H19: =IF(ISBLANK(Zakázka!S32),CHAR(32),Zakázka!S32) ->  | I19: =IF(ISBLANK(Zakázka!E32),CHAR(32),(Zakázka!$I$12)) ->  | L19: =IF(ISBLANK(Zakázka!BA32),CHAR(32),Zakázka!BA32) -> 
A20: =IF(ISBLANK(Zakázka!E33),CHAR(94),IF(ISTEXT(Zakázka!E33),CHAR(32),Zakázka!E33)) -> ^ | B20: =IF(ISBLANK(Zakázka!E33),CHAR(32),Zakázka!E33) ->  | C20: =IF(ISBLANK(Zakázka!BG33),CHAR(32),Zakázka!BG33) ->  | D20: =IF(ISBLANK(Zakázka!BH33),CHAR(32),Zakázka!BH33) ->  | E20: =IF(ISBLANK(Zakázka!E33),CHAR(32),Zakázka!$I$11) ->  | F20: =IF(ISBLANK(Zakázka!E33),CHAR(32),Zakázka!$I$10) ->  | G20: =IF(ISBLANK(Zakázka!U33),CHAR(32),Zakázka!U33) ->  | H20: =IF(ISBLANK(Zakázka!S33),CHAR(32),Zakázka!S33) ->  | I20: =IF(ISBLANK(Zakázka!E33),CHAR(32),(Zakázka!$I$12)) ->  | L20: =IF(ISBLANK(Zakázka!BA33),CHAR(32),Zakázka!BA33) -> 
A21: =IF(ISBLANK(Zakázka!E34),CHAR(94),IF(ISTEXT(Zakázka!E34),CHAR(32),Zakázka!E34)) -> ^ | B21: =IF(ISBLANK(Zakázka!E34),CHAR(32),Zakázka!E34) ->  | C21: =IF(ISBLANK(Zakázka!BG34),CHAR(32),Zakázka!BG34) ->  | D21: =IF(ISBLANK(Zakázka!BH34),CHAR(32),Zakázka!BH34) ->  | E21: =IF(ISBLANK(Zakázka!E34),CHAR(32),Zakázka!$I$11) ->  | F21: =IF(ISBLANK(Zakázka!E34),CHAR(32),Zakázka!$I$10) ->  | G21: =IF(ISBLANK(Zakázka!U34),CHAR(32),Zakázka!U34) ->  | H21: =IF(ISBLANK(Zakázka!S34),CHAR(32),Zakázka!S34) ->  | I21: =IF(ISBLANK(Zakázka!E34),CHAR(32),(Zakázka!$I$12)) ->  | L21: =IF(ISBLANK(Zakázka!BA34),CHAR(32),Zakázka!BA34) -> 
A22: =IF(ISBLANK(Zakázka!E35),CHAR(94),IF(ISTEXT(Zakázka!E35),CHAR(32),Zakázka!E35)) -> ^ | B22: =IF(ISBLANK(Zakázka!E35),CHAR(32),Zakázka!E35) ->  | C22: =IF(ISBLANK(Zakázka!BG35),CHAR(32),Zakázka!BG35) ->  | D22: =IF(ISBLANK(Zakázka!BH35),CHAR(32),Zakázka!BH35) ->  | E22: =IF(ISBLANK(Zakázka!E35),CHAR(32),Zakázka!$I$11) ->  | F22: =IF(ISBLANK(Zakázka!E35),CHAR(32),Zakázka!$I$10) ->  | G22: =IF(ISBLANK(Zakázka!U35),CHAR(32),Zakázka!U35) ->  | H22: =IF(ISBLANK(Zakázka!S35),CHAR(32),Zakázka!S35) ->  | I22: =IF(ISBLANK(Zakázka!E35),CHAR(32),(Zakázka!$I$12)) ->  | L22: =IF(ISBLANK(Zakázka!BA35),CHAR(32),Zakázka!BA35) -> 
A23: =IF(ISBLANK(Zakázka!E36),CHAR(94),IF(ISTEXT(Zakázka!E36),CHAR(32),Zakázka!E36)) -> ^ | B23: =IF(ISBLANK(Zakázka!E36),CHAR(32),Zakázka!E36) ->  | C23: =IF(ISBLANK(Zakázka!BG36),CHAR(32),Zakázka!BG36) ->  | D23: =IF(ISBLANK(Zakázka!BH36),CHAR(32),Zakázka!BH36) ->  | E23: =IF(ISBLANK(Zakázka!E36),CHAR(32),Zakázka!$I$11) ->  | F23: =IF(ISBLANK(Zakázka!E36),CHAR(32),Zakázka!$I$10) ->  | G23: =IF(ISBLANK(Zakázka!U36),CHAR(32),Zakázka!U36) ->  | H23: =IF(ISBLANK(Zakázka!S36),CHAR(32),Zakázka!S36) ->  | I23: =IF(ISBLANK(Zakázka!E36),CHAR(32),(Zakázka!$I$12)) ->  | L23: =IF(ISBLANK(Zakázka!BA36),CHAR(32),Zakázka!BA36) -> 
A24: =IF(ISBLANK(Zakázka!E37),CHAR(94),IF(ISTEXT(Zakázka!E37),CHAR(32),Zakázka!E37)) -> ^ | B24: =IF(ISBLANK(Zakázka!E37),CHAR(32),Zakázka!E37) ->  | C24: =IF(ISBLANK(Zakázka!BG37),CHAR(32),Zakázka!BG37) ->  | D24: =IF(ISBLANK(Zakázka!BH37),CHAR(32),Zakázka!BH37) ->  | E24: =IF(ISBLANK(Zakázka!E37),CHAR(32),Zakázka!$I$11) ->  | F24: =IF(ISBLANK(Zakázka!E37),CHAR(32),Zakázka!$I$10) ->  | G24: =IF(ISBLANK(Zakázka!U37),CHAR(32),Zakázka!U37) ->  | H24: =IF(ISBLANK(Zakázka!S37),CHAR(32),Zakázka!S37) ->  | I24: =IF(ISBLANK(Zakázka!E37),CHAR(32),(Zakázka!$I$12)) ->  | L24: =IF(ISBLANK(Zakázka!BA37),CHAR(32),Zakázka!BA37) -> 
A25: =IF(ISBLANK(Zakázka!E38),CHAR(94),IF(ISTEXT(Zakázka!E38),CHAR(32),Zakázka!E38)) -> ^ | B25: =IF(ISBLANK(Zakázka!E38),CHAR(32),Zakázka!E38) ->  | C25: =IF(ISBLANK(Zakázka!BG38),CHAR(32),Zakázka!BG38) ->  | D25: =IF(ISBLANK(Zakázka!BH38),CHAR(32),Zakázka!BH38) ->  | E25: =IF(ISBLANK(Zakázka!E38),CHAR(32),Zakázka!$I$11) ->  | F25: =IF(ISBLANK(Zakázka!E38),CHAR(32),Zakázka!$I$10) ->  | G25: =IF(ISBLANK(Zakázka!U38),CHAR(32),Zakázka!U38) ->  | H25: =IF(ISBLANK(Zakázka!S38),CHAR(32),Zakázka!S38) ->  | I25: =IF(ISBLANK(Zakázka!E38),CHAR(32),(Zakázka!$I$12)) ->  | L25: =IF(ISBLANK(Zakázka!BA38),CHAR(32),Zakázka!BA38) -> 
A26: =IF(ISBLANK(Zakázka!E39),CHAR(94),IF(ISTEXT(Zakázka!E39),CHAR(32),Zakázka!E39)) -> ^ | B26: =IF(ISBLANK(Zakázka!E39),CHAR(32),Zakázka!E39) ->  | C26: =IF(ISBLANK(Zakázka!BG39),CHAR(32),Zakázka!BG39) ->  | D26: =IF(ISBLANK(Zakázka!BH39),CHAR(32),Zakázka!BH39) ->  | E26: =IF(ISBLANK(Zakázka!E39),CHAR(32),Zakázka!$I$11) ->  | F26: =IF(ISBLANK(Zakázka!E39),CHAR(32),Zakázka!$I$10) ->  | G26: =IF(ISBLANK(Zakázka!U39),CHAR(32),Zakázka!U39) ->  | H26: =IF(ISBLANK(Zakázka!S39),CHAR(32),Zakázka!S39) ->  | I26: =IF(ISBLANK(Zakázka!E39),CHAR(32),(Zakázka!$I$12)) ->  | L26: =IF(ISBLANK(Zakázka!BA39),CHAR(32),Zakázka!BA39) -> 
A27: =IF(ISBLANK(Zakázka!E40),CHAR(94),IF(ISTEXT(Zakázka!E40),CHAR(32),Zakázka!E40)) -> ^ | B27: =IF(ISBLANK(Zakázka!E40),CHAR(32),Zakázka!E40) ->  | C27: =IF(ISBLANK(Zakázka!BG40),CHAR(32),Zakázka!BG40) ->  | D27: =IF(ISBLANK(Zakázka!BH40),CHAR(32),Zakázka!BH40) ->  | E27: =IF(ISBLANK(Zakázka!E40),CHAR(32),Zakázka!$I$11) ->  | F27: =IF(ISBLANK(Zakázka!E40),CHAR(32),Zakázka!$I$10) ->  | G27: =IF(ISBLANK(Zakázka!U40),CHAR(32),Zakázka!U40) ->  | H27: =IF(ISBLANK(Zakázka!S40),CHAR(32),Zakázka!S40) ->  | I27: =IF(ISBLANK(Zakázka!E40),CHAR(32),(Zakázka!$I$12)) ->  | L27: =IF(ISBLANK(Zakázka!BA40),CHAR(32),Zakázka!BA40) -> 
A28: =IF(ISBLANK(Zakázka!E41),CHAR(94),IF(ISTEXT(Zakázka!E41),CHAR(32),Zakázka!E41)) -> ^ | B28: =IF(ISBLANK(Zakázka!E41),CHAR(32),Zakázka!E41) ->  | C28: =IF(ISBLANK(Zakázka!BG41),CHAR(32),Zakázka!BG41) ->  | D28: =IF(ISBLANK(Zakázka!BH41),CHAR(32),Zakázka!BH41) ->  | E28: =IF(ISBLANK(Zakázka!E41),CHAR(32),Zakázka!$I$11) ->  | F28: =IF(ISBLANK(Zakázka!E41),CHAR(32),Zakázka!$I$10) ->  | G28: =IF(ISBLANK(Zakázka!U41),CHAR(32),Zakázka!U41) ->  | H28: =IF(ISBLANK(Zakázka!S41),CHAR(32),Zakázka!S41) ->  | I28: =IF(ISBLANK(Zakázka!E41),CHAR(32),(Zakázka!$I$12)) ->  | L28: =IF(ISBLANK(Zakázka!BA41),CHAR(32),Zakázka!BA41) -> 
A29: =IF(ISBLANK(Zakázka!E42),CHAR(94),IF(ISTEXT(Zakázka!E42),CHAR(32),Zakázka!E42)) -> ^ | B29: =IF(ISBLANK(Zakázka!E42),CHAR(32),Zakázka!E42) ->  | C29: =IF(ISBLANK(Zakázka!BG42),CHAR(32),Zakázka!BG42) ->  | D29: =IF(ISBLANK(Zakázka!BH42),CHAR(32),Zakázka!BH42) ->  | E29: =IF(ISBLANK(Zakázka!E42),CHAR(32),Zakázka!$I$11) ->  | F29: =IF(ISBLANK(Zakázka!E42),CHAR(32),Zakázka!$I$10) ->  | G29: =IF(ISBLANK(Zakázka!U42),CHAR(32),Zakázka!U42) ->  | H29: =IF(ISBLANK(Zakázka!S42),CHAR(32),Zakázka!S42) ->  | I29: =IF(ISBLANK(Zakázka!E42),CHAR(32),(Zakázka!$I$12)) ->  | L29: =IF(ISBLANK(Zakázka!BA42),CHAR(32),Zakázka!BA42) -> 
A30: =IF(ISBLANK(Zakázka!E43),CHAR(94),IF(ISTEXT(Zakázka!E43),CHAR(32),Zakázka!E43)) -> ^ | B30: =IF(ISBLANK(Zakázka!E43),CHAR(32),Zakázka!E43) ->  | C30: =IF(ISBLANK(Zakázka!BG43),CHAR(32),Zakázka!BG43) ->  | D30: =IF(ISBLANK(Zakázka!BH43),CHAR(32),Zakázka!BH43) ->  | E30: =IF(ISBLANK(Zakázka!E43),CHAR(32),Zakázka!$I$11) ->  | F30: =IF(ISBLANK(Zakázka!E43),CHAR(32),Zakázka!$I$10) ->  | G30: =IF(ISBLANK(Zakázka!U43),CHAR(32),Zakázka!U43) ->  | H30: =IF(ISBLANK(Zakázka!S43),CHAR(32),Zakázka!S43) ->  | I30: =IF(ISBLANK(Zakázka!E43),CHAR(32),(Zakázka!$I$12)) ->  | L30: =IF(ISBLANK(Zakázka!BA43),CHAR(32),Zakázka!BA43) -> 
A31: =IF(ISBLANK(Zakázka!E44),CHAR(94),IF(ISTEXT(Zakázka!E44),CHAR(32),Zakázka!E44)) -> ^ | B31: =IF(ISBLANK(Zakázka!E44),CHAR(32),Zakázka!E44) ->  | C31: =IF(ISBLANK(Zakázka!BG44),CHAR(32),Zakázka!BG44) ->  | D31: =IF(ISBLANK(Zakázka!BH44),CHAR(32),Zakázka!BH44) ->  | E31: =IF(ISBLANK(Zakázka!E44),CHAR(32),Zakázka!$I$11) ->  | F31: =IF(ISBLANK(Zakázka!E44),CHAR(32),Zakázka!$I$10) ->  | G31: =IF(ISBLANK(Zakázka!U44),CHAR(32),Zakázka!U44) ->  | H31: =IF(ISBLANK(Zakázka!S44),CHAR(32),Zakázka!S44) ->  | I31: =IF(ISBLANK(Zakázka!E44),CHAR(32),(Zakázka!$I$12)) ->  | L31: =IF(ISBLANK(Zakázka!BA44),CHAR(32),Zakázka!BA44) -> 
A32: =IF(ISBLANK(Zakázka!E45),CHAR(94),IF(ISTEXT(Zakázka!E45),CHAR(32),Zakázka!E45)) -> ^ | B32: =IF(ISBLANK(Zakázka!E45),CHAR(32),Zakázka!E45) ->  | C32: =IF(ISBLANK(Zakázka!BG45),CHAR(32),Zakázka!BG45) ->  | D32: =IF(ISBLANK(Zakázka!BH45),CHAR(32),Zakázka!BH45) ->  | E32: =IF(ISBLANK(Zakázka!E45),CHAR(32),Zakázka!$I$11) ->  | F32: =IF(ISBLANK(Zakázka!E45),CHAR(32),Zakázka!$I$10) ->  | G32: =IF(ISBLANK(Zakázka!U45),CHAR(32),Zakázka!U45) ->  | H32: =IF(ISBLANK(Zakázka!S45),CHAR(32),Zakázka!S45) ->  | I32: =IF(ISBLANK(Zakázka!E45),CHAR(32),(Zakázka!$I$12)) ->  | L32: =IF(ISBLANK(Zakázka!BA45),CHAR(32),Zakázka!BA45) -> 
A33: =IF(ISBLANK(Zakázka!E46),CHAR(94),IF(ISTEXT(Zakázka!E46),CHAR(32),Zakázka!E46)) -> ^ | B33: =IF(ISBLANK(Zakázka!E46),CHAR(32),Zakázka!E46) ->  | C33: =IF(ISBLANK(Zakázka!BG46),CHAR(32),Zakázka!BG46) ->  | D33: =IF(ISBLANK(Zakázka!BH46),CHAR(32),Zakázka!BH46) ->  | E33: =IF(ISBLANK(Zakázka!E46),CHAR(32),Zakázka!$I$11) ->  | F33: =IF(ISBLANK(Zakázka!E46),CHAR(32),Zakázka!$I$10) ->  | G33: =IF(ISBLANK(Zakázka!U46),CHAR(32),Zakázka!U46) ->  | H33: =IF(ISBLANK(Zakázka!S46),CHAR(32),Zakázka!S46) ->  | I33: =IF(ISBLANK(Zakázka!E46),CHAR(32),(Zakázka!$I$12)) ->  | L33: =IF(ISBLANK(Zakázka!BA46),CHAR(32),Zakázka!BA46) -> 
A34: =IF(ISBLANK(Zakázka!E47),CHAR(94),IF(ISTEXT(Zakázka!E47),CHAR(32),Zakázka!E47)) -> ^ | B34: =IF(ISBLANK(Zakázka!E47),CHAR(32),Zakázka!E47) ->  | C34: =IF(ISBLANK(Zakázka!BG47),CHAR(32),Zakázka!BG47) ->  | D34: =IF(ISBLANK(Zakázka!BH47),CHAR(32),Zakázka!BH47) ->  | E34: =IF(ISBLANK(Zakázka!E47),CHAR(32),Zakázka!$I$11) ->  | F34: =IF(ISBLANK(Zakázka!E47),CHAR(32),Zakázka!$I$10) ->  | G34: =IF(ISBLANK(Zakázka!U47),CHAR(32),Zakázka!U47) ->  | H34: =IF(ISBLANK(Zakázka!S47),CHAR(32),Zakázka!S47) ->  | I34: =IF(ISBLANK(Zakázka!E47),CHAR(32),(Zakázka!$I$12)) ->  | L34: =IF(ISBLANK(Zakázka!BA47),CHAR(32),Zakázka!BA47) -> 
A35: =IF(ISBLANK(Zakázka!E48),CHAR(94),IF(ISTEXT(Zakázka!E48),CHAR(32),Zakázka!E48)) -> ^ | B35: =IF(ISBLANK(Zakázka!E48),CHAR(32),Zakázka!E48) ->  | C35: =IF(ISBLANK(Zakázka!BG48),CHAR(32),Zakázka!BG48) ->  | D35: =IF(ISBLANK(Zakázka!BH48),CHAR(32),Zakázka!BH48) ->  | E35: =IF(ISBLANK(Zakázka!E48),CHAR(32),Zakázka!$I$11) ->  | F35: =IF(ISBLANK(Zakázka!E48),CHAR(32),Zakázka!$I$10) ->  | G35: =IF(ISBLANK(Zakázka!U48),CHAR(32),Zakázka!U48) ->  | H35: =IF(ISBLANK(Zakázka!S48),CHAR(32),Zakázka!S48) ->  | I35: =IF(ISBLANK(Zakázka!E48),CHAR(32),(Zakázka!$I$12)) ->  | L35: =IF(ISBLANK(Zakázka!BA48),CHAR(32),Zakázka!BA48) -> 
A36: =IF(ISBLANK(Zakázka!E49),CHAR(94),IF(ISTEXT(Zakázka!E49),CHAR(32),Zakázka!E49)) -> ^ | B36: =IF(ISBLANK(Zakázka!E49),CHAR(32),Zakázka!E49) ->  | C36: =IF(ISBLANK(Zakázka!BG49),CHAR(32),Zakázka!BG49) ->  | D36: =IF(ISBLANK(Zakázka!BH49),CHAR(32),Zakázka!BH49) ->  | E36: =IF(ISBLANK(Zakázka!E49),CHAR(32),Zakázka!$I$11) ->  | F36: =IF(ISBLANK(Zakázka!E49),CHAR(32),Zakázka!$I$10) ->  | G36: =IF(ISBLANK(Zakázka!U49),CHAR(32),Zakázka!U49) ->  | H36: =IF(ISBLANK(Zakázka!S49),CHAR(32),Zakázka!S49) ->  | I36: =IF(ISBLANK(Zakázka!E49),CHAR(32),(Zakázka!$I$12)) ->  | L36: =IF(ISBLANK(Zakázka!BA49),CHAR(32),Zakázka!BA49) -> 
A37: =IF(ISBLANK(Zakázka!E50),CHAR(94),IF(ISTEXT(Zakázka!E50),CHAR(32),Zakázka!E50)) -> ^ | B37: =IF(ISBLANK(Zakázka!E50),CHAR(32),Zakázka!E50) ->  | C37: =IF(ISBLANK(Zakázka!BG50),CHAR(32),Zakázka!BG50) ->  | D37: =IF(ISBLANK(Zakázka!BH50),CHAR(32),Zakázka!BH50) ->  | E37: =IF(ISBLANK(Zakázka!E50),CHAR(32),Zakázka!$I$11) ->  | F37: =IF(ISBLANK(Zakázka!E50),CHAR(32),Zakázka!$I$10) ->  | G37: =IF(ISBLANK(Zakázka!U50),CHAR(32),Zakázka!U50) ->  | H37: =IF(ISBLANK(Zakázka!S50),CHAR(32),Zakázka!S50) ->  | I37: =IF(ISBLANK(Zakázka!E50),CHAR(32),(Zakázka!$I$12)) ->  | L37: =IF(ISBLANK(Zakázka!BA50),CHAR(32),Zakázka!BA50) -> 
A38: =IF(ISBLANK(Zakázka!E51),CHAR(94),IF(ISTEXT(Zakázka!E51),CHAR(32),Zakázka!E51)) -> ^ | B38: =IF(ISBLANK(Zakázka!E51),CHAR(32),Zakázka!E51) ->  | C38: =IF(ISBLANK(Zakázka!BG51),CHAR(32),Zakázka!BG51) ->  | D38: =IF(ISBLANK(Zakázka!BH51),CHAR(32),Zakázka!BH51) ->  | E38: =IF(ISBLANK(Zakázka!E51),CHAR(32),Zakázka!$I$11) ->  | F38: =IF(ISBLANK(Zakázka!E51),CHAR(32),Zakázka!$I$10) ->  | G38: =IF(ISBLANK(Zakázka!U51),CHAR(32),Zakázka!U51) ->  | H38: =IF(ISBLANK(Zakázka!S51),CHAR(32),Zakázka!S51) ->  | I38: =IF(ISBLANK(Zakázka!E51),CHAR(32),(Zakázka!$I$12)) ->  | L38: =IF(ISBLANK(Zakázka!BA51),CHAR(32),Zakázka!BA51) -> 
A39: =IF(ISBLANK(Zakázka!E52),CHAR(94),IF(ISTEXT(Zakázka!E52),CHAR(32),Zakázka!E52)) -> ^ | B39: =IF(ISBLANK(Zakázka!E52),CHAR(32),Zakázka!E52) ->  | C39: =IF(ISBLANK(Zakázka!BG52),CHAR(32),Zakázka!BG52) ->  | D39: =IF(ISBLANK(Zakázka!BH52),CHAR(32),Zakázka!BH52) ->  | E39: =IF(ISBLANK(Zakázka!E52),CHAR(32),Zakázka!$I$11) ->  | F39: =IF(ISBLANK(Zakázka!E52),CHAR(32),Zakázka!$I$10) ->  | G39: =IF(ISBLANK(Zakázka!U52),CHAR(32),Zakázka!U52) ->  | H39: =IF(ISBLANK(Zakázka!S52),CHAR(32),Zakázka!S52) ->  | I39: =IF(ISBLANK(Zakázka!E52),CHAR(32),(Zakázka!$I$12)) ->  | L39: =IF(ISBLANK(Zakázka!BA52),CHAR(32),Zakázka!BA52) -> 
A40: =IF(ISBLANK(Zakázka!E53),CHAR(94),IF(ISTEXT(Zakázka!E53),CHAR(32),Zakázka!E53)) -> ^ | B40: =IF(ISBLANK(Zakázka!E53),CHAR(32),Zakázka!E53) ->  | C40: =IF(ISBLANK(Zakázka!BG53),CHAR(32),Zakázka!BG53) ->  | D40: =IF(ISBLANK(Zakázka!BH53),CHAR(32),Zakázka!BH53) ->  | E40: =IF(ISBLANK(Zakázka!E53),CHAR(32),Zakázka!$I$11) ->  | F40: =IF(ISBLANK(Zakázka!E53),CHAR(32),Zakázka!$I$10) ->  | G40: =IF(ISBLANK(Zakázka!U53),CHAR(32),Zakázka!U53) ->  | H40: =IF(ISBLANK(Zakázka!S53),CHAR(32),Zakázka!S53) ->  | I40: =IF(ISBLANK(Zakázka!E53),CHAR(32),(Zakázka!$I$12)) ->  | L40: =IF(ISBLANK(Zakázka!BA53),CHAR(32),Zakázka!BA53) -> 
A41: =IF(ISBLANK(Zakázka!E54),CHAR(94),IF(ISTEXT(Zakázka!E54),CHAR(32),Zakázka!E54)) -> ^ | B41: =IF(ISBLANK(Zakázka!E54),CHAR(32),Zakázka!E54) ->  | C41: =IF(ISBLANK(Zakázka!BG54),CHAR(32),Zakázka!BG54) ->  | D41: =IF(ISBLANK(Zakázka!BH54),CHAR(32),Zakázka!BH54) ->  | E41: =IF(ISBLANK(Zakázka!E54),CHAR(32),Zakázka!$I$11) ->  | F41: =IF(ISBLANK(Zakázka!E54),CHAR(32),Zakázka!$I$10) ->  | G41: =IF(ISBLANK(Zakázka!U54),CHAR(32),Zakázka!U54) ->  | H41: =IF(ISBLANK(Zakázka!S54),CHAR(32),Zakázka!S54) ->  | I41: =IF(ISBLANK(Zakázka!E54),CHAR(32),(Zakázka!$I$12)) ->  | L41: =IF(ISBLANK(Zakázka!BA54),CHAR(32),Zakázka!BA54) -> 
A42: =IF(ISBLANK(Zakázka!E55),CHAR(94),IF(ISTEXT(Zakázka!E55),CHAR(32),Zakázka!E55)) -> ^ | B42: =IF(ISBLANK(Zakázka!E55),CHAR(32),Zakázka!E55) ->  | C42: =IF(ISBLANK(Zakázka!BG55),CHAR(32),Zakázka!BG55) ->  | D42: =IF(ISBLANK(Zakázka!BH55),CHAR(32),Zakázka!BH55) ->  | E42: =IF(ISBLANK(Zakázka!E55),CHAR(32),Zakázka!$I$11) ->  | F42: =IF(ISBLANK(Zakázka!E55),CHAR(32),Zakázka!$I$10) ->  | G42: =IF(ISBLANK(Zakázka!U55),CHAR(32),Zakázka!U55) ->  | H42: =IF(ISBLANK(Zakázka!S55),CHAR(32),Zakázka!S55) ->  | I42: =IF(ISBLANK(Zakázka!E55),CHAR(32),(Zakázka!$I$12)) ->  | L42: =IF(ISBLANK(Zakázka!BA55),CHAR(32),Zakázka!BA55) -> 
A43: =IF(ISBLANK(Zakázka!E56),CHAR(94),IF(ISTEXT(Zakázka!E56),CHAR(32),Zakázka!E56)) -> ^ | B43: =IF(ISBLANK(Zakázka!E56),CHAR(32),Zakázka!E56) ->  | C43: =IF(ISBLANK(Zakázka!BG56),CHAR(32),Zakázka!BG56) ->  | D43: =IF(ISBLANK(Zakázka!BH56),CHAR(32),Zakázka!BH56) ->  | E43: =IF(ISBLANK(Zakázka!E56),CHAR(32),Zakázka!$I$11) ->  | F43: =IF(ISBLANK(Zakázka!E56),CHAR(32),Zakázka!$I$10) ->  | G43: =IF(ISBLANK(Zakázka!U56),CHAR(32),Zakázka!U56) ->  | H43: =IF(ISBLANK(Zakázka!S56),CHAR(32),Zakázka!S56) ->  | I43: =IF(ISBLANK(Zakázka!E56),CHAR(32),(Zakázka!$I$12)) ->  | L43: =IF(ISBLANK(Zakázka!BA56),CHAR(32),Zakázka!BA56) -> 
A44: =IF(ISBLANK(Zakázka!E57),CHAR(94),IF(ISTEXT(Zakázka!E57),CHAR(32),Zakázka!E57)) -> ^ | B44: =IF(ISBLANK(Zakázka!E57),CHAR(32),Zakázka!E57) ->  | C44: =IF(ISBLANK(Zakázka!BG57),CHAR(32),Zakázka!BG57) ->  | D44: =IF(ISBLANK(Zakázka!BH57),CHAR(32),Zakázka!BH57) ->  | E44: =IF(ISBLANK(Zakázka!E57),CHAR(32),Zakázka!$I$11) ->  | F44: =IF(ISBLANK(Zakázka!E57),CHAR(32),Zakázka!$I$10) ->  | G44: =IF(ISBLANK(Zakázka!U57),CHAR(32),Zakázka!U57) ->  | H44: =IF(ISBLANK(Zakázka!S57),CHAR(32),Zakázka!S57) ->  | I44: =IF(ISBLANK(Zakázka!E57),CHAR(32),(Zakázka!$I$12)) ->  | L44: =IF(ISBLANK(Zakázka!BA57),CHAR(32),Zakázka!BA57) -> 
A45: =IF(ISBLANK(Zakázka!E58),CHAR(94),IF(ISTEXT(Zakázka!E58),CHAR(32),Zakázka!E58)) -> ^ | B45: =IF(ISBLANK(Zakázka!E58),CHAR(32),Zakázka!E58) ->  | C45: =IF(ISBLANK(Zakázka!BG58),CHAR(32),Zakázka!BG58) ->  | D45: =IF(ISBLANK(Zakázka!BH58),CHAR(32),Zakázka!BH58) ->  | E45: =IF(ISBLANK(Zakázka!E58),CHAR(32),Zakázka!$I$11) ->  | F45: =IF(ISBLANK(Zakázka!E58),CHAR(32),Zakázka!$I$10) ->  | G45: =IF(ISBLANK(Zakázka!U58),CHAR(32),Zakázka!U58) ->  | H45: =IF(ISBLANK(Zakázka!S58),CHAR(32),Zakázka!S58) ->  | I45: =IF(ISBLANK(Zakázka!E58),CHAR(32),(Zakázka!$I$12)) ->  | L45: =IF(ISBLANK(Zakázka!BA58),CHAR(32),Zakázka!BA58) -> 
A46: =IF(ISBLANK(Zakázka!E59),CHAR(94),IF(ISTEXT(Zakázka!E59),CHAR(32),Zakázka!E59)) -> ^ | B46: =IF(ISBLANK(Zakázka!E59),CHAR(32),Zakázka!E59) ->  | C46: =IF(ISBLANK(Zakázka!BG59),CHAR(32),Zakázka!BG59) ->  | D46: =IF(ISBLANK(Zakázka!BH59),CHAR(32),Zakázka!BH59) ->  | E46: =IF(ISBLANK(Zakázka!E59),CHAR(32),Zakázka!$I$11) ->  | F46: =IF(ISBLANK(Zakázka!E59),CHAR(32),Zakázka!$I$10) ->  | G46: =IF(ISBLANK(Zakázka!U59),CHAR(32),Zakázka!U59) ->  | H46: =IF(ISBLANK(Zakázka!S59),CHAR(32),Zakázka!S59) ->  | I46: =IF(ISBLANK(Zakázka!E59),CHAR(32),(Zakázka!$I$12)) ->  | L46: =IF(ISBLANK(Zakázka!BA59),CHAR(32),Zakázka!BA59) -> 
A47: =IF(ISBLANK(Zakázka!E60),CHAR(94),IF(ISTEXT(Zakázka!E60),CHAR(32),Zakázka!E60)) -> ^ | B47: =IF(ISBLANK(Zakázka!E60),CHAR(32),Zakázka!E60) ->  | C47: =IF(ISBLANK(Zakázka!BG60),CHAR(32),Zakázka!BG60) ->  | D47: =IF(ISBLANK(Zakázka!BH60),CHAR(32),Zakázka!BH60) ->  | E47: =IF(ISBLANK(Zakázka!E60),CHAR(32),Zakázka!$I$11) ->  | F47: =IF(ISBLANK(Zakázka!E60),CHAR(32),Zakázka!$I$10) ->  | G47: =IF(ISBLANK(Zakázka!U60),CHAR(32),Zakázka!U60) ->  | H47: =IF(ISBLANK(Zakázka!S60),CHAR(32),Zakázka!S60) ->  | I47: =IF(ISBLANK(Zakázka!E60),CHAR(32),(Zakázka!$I$12)) ->  | L47: =IF(ISBLANK(Zakázka!BA60),CHAR(32),Zakázka!BA60) -> 
A48: =IF(ISBLANK(Zakázka!E61),CHAR(94),IF(ISTEXT(Zakázka!E61),CHAR(32),Zakázka!E61)) -> ^ | B48: =IF(ISBLANK(Zakázka!E61),CHAR(32),Zakázka!E61) ->  | C48: =IF(ISBLANK(Zakázka!BG61),CHAR(32),Zakázka!BG61) ->  | D48: =IF(ISBLANK(Zakázka!BH61),CHAR(32),Zakázka!BH61) ->  | E48: =IF(ISBLANK(Zakázka!E61),CHAR(32),Zakázka!$I$11) ->  | F48: =IF(ISBLANK(Zakázka!E61),CHAR(32),Zakázka!$I$10) ->  | G48: =IF(ISBLANK(Zakázka!U61),CHAR(32),Zakázka!U61) ->  | H48: =IF(ISBLANK(Zakázka!S61),CHAR(32),Zakázka!S61) ->  | I48: =IF(ISBLANK(Zakázka!E61),CHAR(32),(Zakázka!$I$12)) ->  | L48: =IF(ISBLANK(Zakázka!BA61),CHAR(32),Zakázka!BA61) -> 
A49: =IF(ISBLANK(Zakázka!E62),CHAR(94),IF(ISTEXT(Zakázka!E62),CHAR(32),Zakázka!E62)) -> ^ | B49: =IF(ISBLANK(Zakázka!E62),CHAR(32),Zakázka!E62) ->  | C49: =IF(ISBLANK(Zakázka!BG62),CHAR(32),Zakázka!BG62) ->  | D49: =IF(ISBLANK(Zakázka!BH62),CHAR(32),Zakázka!BH62) ->  | E49: =IF(ISBLANK(Zakázka!E62),CHAR(32),Zakázka!$I$11) ->  | F49: =IF(ISBLANK(Zakázka!E62),CHAR(32),Zakázka!$I$10) ->  | G49: =IF(ISBLANK(Zakázka!U62),CHAR(32),Zakázka!U62) ->  | H49: =IF(ISBLANK(Zakázka!S62),CHAR(32),Zakázka!S62) ->  | I49: =IF(ISBLANK(Zakázka!E62),CHAR(32),(Zakázka!$I$12)) ->  | L49: =IF(ISBLANK(Zakázka!BA62),CHAR(32),Zakázka!BA62) -> 
A50: =IF(ISBLANK(Zakázka!E63),CHAR(94),IF(ISTEXT(Zakázka!E63),CHAR(32),Zakázka!E63)) -> ^ | B50: =IF(ISBLANK(Zakázka!E63),CHAR(32),Zakázka!E63) ->  | C50: =IF(ISBLANK(Zakázka!BG63),CHAR(32),Zakázka!BG63) ->  | D50: =IF(ISBLANK(Zakázka!BH63),CHAR(32),Zakázka!BH63) ->  | E50: =IF(ISBLANK(Zakázka!E63),CHAR(32),Zakázka!$I$11) ->  | F50: =IF(ISBLANK(Zakázka!E63),CHAR(32),Zakázka!$I$10) ->  | G50: =IF(ISBLANK(Zakázka!U63),CHAR(32),Zakázka!U63) ->  | H50: =IF(ISBLANK(Zakázka!S63),CHAR(32),Zakázka!S63) ->  | I50: =IF(ISBLANK(Zakázka!E63),CHAR(32),(Zakázka!$I$12)) ->  | L50: =IF(ISBLANK(Zakázka!BA63),CHAR(32),Zakázka!BA63) -> 
A51: =IF(ISBLANK(Zakázka!E64),CHAR(94),IF(ISTEXT(Zakázka!E64),CHAR(32),Zakázka!E64)) -> ^ | B51: =IF(ISBLANK(Zakázka!E64),CHAR(32),Zakázka!E64) ->  | C51: =IF(ISBLANK(Zakázka!BG64),CHAR(32),Zakázka!BG64) ->  | D51: =IF(ISBLANK(Zakázka!BH64),CHAR(32),Zakázka!BH64) ->  | E51: =IF(ISBLANK(Zakázka!E64),CHAR(32),Zakázka!$I$11) ->  | F51: =IF(ISBLANK(Zakázka!E64),CHAR(32),Zakázka!$I$10) ->  | G51: =IF(ISBLANK(Zakázka!U64),CHAR(32),Zakázka!U64) ->  | H51: =IF(ISBLANK(Zakázka!S64),CHAR(32),Zakázka!S64) ->  | I51: =IF(ISBLANK(Zakázka!E64),CHAR(32),(Zakázka!$I$12)) ->  | L51: =IF(ISBLANK(Zakázka!BA64),CHAR(32),Zakázka!BA64) -> 
A52: =IF(ISBLANK(Zakázka!E65),CHAR(94),IF(ISTEXT(Zakázka!E65),CHAR(32),Zakázka!E65)) -> ^ | B52: =IF(ISBLANK(Zakázka!E65),CHAR(32),Zakázka!E65) ->  | C52: =IF(ISBLANK(Zakázka!BG65),CHAR(32),Zakázka!BG65) ->  | D52: =IF(ISBLANK(Zakázka!BH65),CHAR(32),Zakázka!BH65) ->  | E52: =IF(ISBLANK(Zakázka!E65),CHAR(32),Zakázka!$I$11) ->  | F52: =IF(ISBLANK(Zakázka!E65),CHAR(32),Zakázka!$I$10) ->  | G52: =IF(ISBLANK(Zakázka!U65),CHAR(32),Zakázka!U65) ->  | H52: =IF(ISBLANK(Zakázka!S65),CHAR(32),Zakázka!S65) ->  | I52: =IF(ISBLANK(Zakázka!E65),CHAR(32),(Zakázka!$I$12)) ->  | L52: =IF(ISBLANK(Zakázka!BA65),CHAR(32),Zakázka!BA65) -> 
A53: =IF(ISBLANK(Zakázka!E66),CHAR(94),IF(ISTEXT(Zakázka!E66),CHAR(32),Zakázka!E66)) -> ^ | B53: =IF(ISBLANK(Zakázka!E66),CHAR(32),Zakázka!E66) ->  | C53: =IF(ISBLANK(Zakázka!BG66),CHAR(32),Zakázka!BG66) ->  | D53: =IF(ISBLANK(Zakázka!BH66),CHAR(32),Zakázka!BH66) ->  | E53: =IF(ISBLANK(Zakázka!E66),CHAR(32),Zakázka!$I$11) ->  | F53: =IF(ISBLANK(Zakázka!E66),CHAR(32),Zakázka!$I$10) ->  | G53: =IF(ISBLANK(Zakázka!U66),CHAR(32),Zakázka!U66) ->  | H53: =IF(ISBLANK(Zakázka!S66),CHAR(32),Zakázka!S66) ->  | I53: =IF(ISBLANK(Zakázka!E66),CHAR(32),(Zakázka!$I$12)) ->  | L53: =IF(ISBLANK(Zakázka!BA66),CHAR(32),Zakázka!BA66) -> 
A54: =IF(ISBLANK(Zakázka!E67),CHAR(94),IF(ISTEXT(Zakázka!E67),CHAR(32),Zakázka!E67)) -> ^ | B54: =IF(ISBLANK(Zakázka!E67),CHAR(32),Zakázka!E67) ->  | C54: =IF(ISBLANK(Zakázka!BG67),CHAR(32),Zakázka!BG67) ->  | D54: =IF(ISBLANK(Zakázka!BH67),CHAR(32),Zakázka!BH67) ->  | E54: =IF(ISBLANK(Zakázka!E67),CHAR(32),Zakázka!$I$11) ->  | F54: =IF(ISBLANK(Zakázka!E67),CHAR(32),Zakázka!$I$10) ->  | G54: =IF(ISBLANK(Zakázka!U67),CHAR(32),Zakázka!U67) ->  | H54: =IF(ISBLANK(Zakázka!S67),CHAR(32),Zakázka!S67) ->  | I54: =IF(ISBLANK(Zakázka!E67),CHAR(32),(Zakázka!$I$12)) ->  | L54: =IF(ISBLANK(Zakázka!BA67),CHAR(32),Zakázka!BA67) -> 
A55: =IF(ISBLANK(Zakázka!E68),CHAR(94),IF(ISTEXT(Zakázka!E68),CHAR(32),Zakázka!E68)) -> ^ | B55: =IF(ISBLANK(Zakázka!E68),CHAR(32),Zakázka!E68) ->  | C55: =IF(ISBLANK(Zakázka!BG68),CHAR(32),Zakázka!BG68) ->  | D55: =IF(ISBLANK(Zakázka!BH68),CHAR(32),Zakázka!BH68) ->  | E55: =IF(ISBLANK(Zakázka!E68),CHAR(32),Zakázka!$I$11) ->  | F55: =IF(ISBLANK(Zakázka!E68),CHAR(32),Zakázka!$I$10) ->  | G55: =IF(ISBLANK(Zakázka!U68),CHAR(32),Zakázka!U68) ->  | H55: =IF(ISBLANK(Zakázka!S68),CHAR(32),Zakázka!S68) ->  | I55: =IF(ISBLANK(Zakázka!E68),CHAR(32),(Zakázka!$I$12)) ->  | L55: =IF(ISBLANK(Zakázka!BA68),CHAR(32),Zakázka!BA68) -> 
A56: =IF(ISBLANK(Zakázka!E69),CHAR(94),IF(ISTEXT(Zakázka!E69),CHAR(32),Zakázka!E69)) -> ^ | B56: =IF(ISBLANK(Zakázka!E69),CHAR(32),Zakázka!E69) ->  | C56: =IF(ISBLANK(Zakázka!BG69),CHAR(32),Zakázka!BG69) ->  | D56: =IF(ISBLANK(Zakázka!BH69),CHAR(32),Zakázka!BH69) ->  | E56: =IF(ISBLANK(Zakázka!E69),CHAR(32),Zakázka!$I$11) ->  | F56: =IF(ISBLANK(Zakázka!E69),CHAR(32),Zakázka!$I$10) ->  | G56: =IF(ISBLANK(Zakázka!U69),CHAR(32),Zakázka!U69) ->  | H56: =IF(ISBLANK(Zakázka!S69),CHAR(32),Zakázka!S69) ->  | I56: =IF(ISBLANK(Zakázka!E69),CHAR(32),(Zakázka!$I$12)) ->  | L56: =IF(ISBLANK(Zakázka!BA69),CHAR(32),Zakázka!BA69) -> 
A57: =IF(ISBLANK(Zakázka!E70),CHAR(94),IF(ISTEXT(Zakázka!E70),CHAR(32),Zakázka!E70)) -> ^ | B57: =IF(ISBLANK(Zakázka!E70),CHAR(32),Zakázka!E70) ->  | C57: =IF(ISBLANK(Zakázka!BG70),CHAR(32),Zakázka!BG70) ->  | D57: =IF(ISBLANK(Zakázka!BH70),CHAR(32),Zakázka!BH70) ->  | E57: =IF(ISBLANK(Zakázka!E70),CHAR(32),Zakázka!$I$11) ->  | F57: =IF(ISBLANK(Zakázka!E70),CHAR(32),Zakázka!$I$10) ->  | G57: =IF(ISBLANK(Zakázka!U70),CHAR(32),Zakázka!U70) ->  | H57: =IF(ISBLANK(Zakázka!S70),CHAR(32),Zakázka!S70) ->  | I57: =IF(ISBLANK(Zakázka!E70),CHAR(32),(Zakázka!$I$12)) ->  | L57: =IF(ISBLANK(Zakázka!BA70),CHAR(32),Zakázka!BA70) -> 
A58: =IF(ISBLANK(Zakázka!E71),CHAR(94),IF(ISTEXT(Zakázka!E71),CHAR(32),Zakázka!E71)) -> ^ | B58: =IF(ISBLANK(Zakázka!E71),CHAR(32),Zakázka!E71) ->  | C58: =IF(ISBLANK(Zakázka!BG71),CHAR(32),Zakázka!BG71) ->  | D58: =IF(ISBLANK(Zakázka!BH71),CHAR(32),Zakázka!BH71) ->  | E58: =IF(ISBLANK(Zakázka!E71),CHAR(32),Zakázka!$I$11) ->  | F58: =IF(ISBLANK(Zakázka!E71),CHAR(32),Zakázka!$I$10) ->  | G58: =IF(ISBLANK(Zakázka!U71),CHAR(32),Zakázka!U71) ->  | H58: =IF(ISBLANK(Zakázka!S71),CHAR(32),Zakázka!S71) ->  | I58: =IF(ISBLANK(Zakázka!E71),CHAR(32),(Zakázka!$I$12)) ->  | L58: =IF(ISBLANK(Zakázka!BA71),CHAR(32),Zakázka!BA71) -> 
A59: =IF(ISBLANK(Zakázka!E72),CHAR(94),IF(ISTEXT(Zakázka!E72),CHAR(32),Zakázka!E72)) -> ^ | B59: =IF(ISBLANK(Zakázka!E72),CHAR(32),Zakázka!E72) ->  | C59: =IF(ISBLANK(Zakázka!BG72),CHAR(32),Zakázka!BG72) ->  | D59: =IF(ISBLANK(Zakázka!BH72),CHAR(32),Zakázka!BH72) ->  | E59: =IF(ISBLANK(Zakázka!E72),CHAR(32),Zakázka!$I$11) ->  | F59: =IF(ISBLANK(Zakázka!E72),CHAR(32),Zakázka!$I$10) ->  | G59: =IF(ISBLANK(Zakázka!U72),CHAR(32),Zakázka!U72) ->  | H59: =IF(ISBLANK(Zakázka!S72),CHAR(32),Zakázka!S72) ->  | I59: =IF(ISBLANK(Zakázka!E72),CHAR(32),(Zakázka!$I$12)) ->  | L59: =IF(ISBLANK(Zakázka!BA72),CHAR(32),Zakázka!BA72) -> 
A60: =IF(ISBLANK(Zakázka!E73),CHAR(94),IF(ISTEXT(Zakázka!E73),CHAR(32),Zakázka!E73)) -> ^ | B60: =IF(ISBLANK(Zakázka!E73),CHAR(32),Zakázka!E73) ->  | C60: =IF(ISBLANK(Zakázka!BG73),CHAR(32),Zakázka!BG73) ->  | D60: =IF(ISBLANK(Zakázka!BH73),CHAR(32),Zakázka!BH73) ->  | E60: =IF(ISBLANK(Zakázka!E73),CHAR(32),Zakázka!$I$11) ->  | F60: =IF(ISBLANK(Zakázka!E73),CHAR(32),Zakázka!$I$10) ->  | G60: =IF(ISBLANK(Zakázka!U73),CHAR(32),Zakázka!U73) ->  | H60: =IF(ISBLANK(Zakázka!S73),CHAR(32),Zakázka!S73) ->  | I60: =IF(ISBLANK(Zakázka!E73),CHAR(32),(Zakázka!$I$12)) ->  | L60: =IF(ISBLANK(Zakázka!BA73),CHAR(32),Zakázka!BA73) -> 
A61: =IF(ISBLANK(Zakázka!E74),CHAR(94),IF(ISTEXT(Zakázka!E74),CHAR(32),Zakázka!E74)) -> ^ | B61: =IF(ISBLANK(Zakázka!E74),CHAR(32),Zakázka!E74) ->  | C61: =IF(ISBLANK(Zakázka!BG74),CHAR(32),Zakázka!BG74) ->  | D61: =IF(ISBLANK(Zakázka!BH74),CHAR(32),Zakázka!BH74) ->  | E61: =IF(ISBLANK(Zakázka!E74),CHAR(32),Zakázka!$I$11) ->  | F61: =IF(ISBLANK(Zakázka!E74),CHAR(32),Zakázka!$I$10) ->  | G61: =IF(ISBLANK(Zakázka!U74),CHAR(32),Zakázka!U74) ->  | H61: =IF(ISBLANK(Zakázka!S74),CHAR(32),Zakázka!S74) ->  | I61: =IF(ISBLANK(Zakázka!E74),CHAR(32),(Zakázka!$I$12)) ->  | L61: =IF(ISBLANK(Zakázka!BA74),CHAR(32),Zakázka!BA74) -> 
A62: =IF(ISBLANK(Zakázka!E75),CHAR(94),IF(ISTEXT(Zakázka!E75),CHAR(32),Zakázka!E75)) -> ^ | B62: =IF(ISBLANK(Zakázka!E75),CHAR(32),Zakázka!E75) ->  | C62: =IF(ISBLANK(Zakázka!BG75),CHAR(32),Zakázka!BG75) ->  | D62: =IF(ISBLANK(Zakázka!BH75),CHAR(32),Zakázka!BH75) ->  | E62: =IF(ISBLANK(Zakázka!E75),CHAR(32),Zakázka!$I$11) ->  | F62: =IF(ISBLANK(Zakázka!E75),CHAR(32),Zakázka!$I$10) ->  | G62: =IF(ISBLANK(Zakázka!U75),CHAR(32),Zakázka!U75) ->  | H62: =IF(ISBLANK(Zakázka!S75),CHAR(32),Zakázka!S75) ->  | I62: =IF(ISBLANK(Zakázka!E75),CHAR(32),(Zakázka!$I$12)) ->  | L62: =IF(ISBLANK(Zakázka!BA75),CHAR(32),Zakázka!BA75) -> 
A63: =IF(ISBLANK(Zakázka!E76),CHAR(94),IF(ISTEXT(Zakázka!E76),CHAR(32),Zakázka!E76)) -> ^ | B63: =IF(ISBLANK(Zakázka!E76),CHAR(32),Zakázka!E76) ->  | C63: =IF(ISBLANK(Zakázka!BG76),CHAR(32),Zakázka!BG76) ->  | D63: =IF(ISBLANK(Zakázka!BH76),CHAR(32),Zakázka!BH76) ->  | E63: =IF(ISBLANK(Zakázka!E76),CHAR(32),Zakázka!$I$11) ->  | F63: =IF(ISBLANK(Zakázka!E76),CHAR(32),Zakázka!$I$10) ->  | G63: =IF(ISBLANK(Zakázka!U76),CHAR(32),Zakázka!U76) ->  | H63: =IF(ISBLANK(Zakázka!S76),CHAR(32),Zakázka!S76) ->  | I63: =IF(ISBLANK(Zakázka!E76),CHAR(32),(Zakázka!$I$12)) ->  | L63: =IF(ISBLANK(Zakázka!BA76),CHAR(32),Zakázka!BA76) -> 
A64: =IF(ISBLANK(Zakázka!E77),CHAR(94),IF(ISTEXT(Zakázka!E77),CHAR(32),Zakázka!E77)) -> ^ | B64: =IF(ISBLANK(Zakázka!E77),CHAR(32),Zakázka!E77) ->  | C64: =IF(ISBLANK(Zakázka!BG77),CHAR(32),Zakázka!BG77) ->  | D64: =IF(ISBLANK(Zakázka!BH77),CHAR(32),Zakázka!BH77) ->  | E64: =IF(ISBLANK(Zakázka!E77),CHAR(32),Zakázka!$I$11) ->  | F64: =IF(ISBLANK(Zakázka!E77),CHAR(32),Zakázka!$I$10) ->  | G64: =IF(ISBLANK(Zakázka!U77),CHAR(32),Zakázka!U77) ->  | H64: =IF(ISBLANK(Zakázka!S77),CHAR(32),Zakázka!S77) ->  | I64: =IF(ISBLANK(Zakázka!E77),CHAR(32),(Zakázka!$I$12)) ->  | L64: =IF(ISBLANK(Zakázka!BA77),CHAR(32),Zakázka!BA77) -> 
A65: =IF(ISBLANK(Zakázka!E78),CHAR(94),IF(ISTEXT(Zakázka!E78),CHAR(32),Zakázka!E78)) -> ^ | B65: =IF(ISBLANK(Zakázka!E78),CHAR(32),Zakázka!E78) ->  | C65: =IF(ISBLANK(Zakázka!BG78),CHAR(32),Zakázka!BG78) ->  | D65: =IF(ISBLANK(Zakázka!BH78),CHAR(32),Zakázka!BH78) ->  | E65: =IF(ISBLANK(Zakázka!E78),CHAR(32),Zakázka!$I$11) ->  | F65: =IF(ISBLANK(Zakázka!E78),CHAR(32),Zakázka!$I$10) ->  | G65: =IF(ISBLANK(Zakázka!U78),CHAR(32),Zakázka!U78) ->  | H65: =IF(ISBLANK(Zakázka!S78),CHAR(32),Zakázka!S78) ->  | I65: =IF(ISBLANK(Zakázka!E78),CHAR(32),(Zakázka!$I$12)) ->  | L65: =IF(ISBLANK(Zakázka!BA78),CHAR(32),Zakázka!BA78) -> 
A66: =IF(ISBLANK(Zakázka!E79),CHAR(94),IF(ISTEXT(Zakázka!E79),CHAR(32),Zakázka!E79)) -> ^ | B66: =IF(ISBLANK(Zakázka!E79),CHAR(32),Zakázka!E79) ->  | C66: =IF(ISBLANK(Zakázka!BG79),CHAR(32),Zakázka!BG79) ->  | D66: =IF(ISBLANK(Zakázka!BH79),CHAR(32),Zakázka!BH79) ->  | E66: =IF(ISBLANK(Zakázka!E79),CHAR(32),Zakázka!$I$11) ->  | F66: =IF(ISBLANK(Zakázka!E79),CHAR(32),Zakázka!$I$10) ->  | G66: =IF(ISBLANK(Zakázka!U79),CHAR(32),Zakázka!U79) ->  | H66: =IF(ISBLANK(Zakázka!S79),CHAR(32),Zakázka!S79) ->  | I66: =IF(ISBLANK(Zakázka!E79),CHAR(32),(Zakázka!$I$12)) ->  | L66: =IF(ISBLANK(Zakázka!BA79),CHAR(32),Zakázka!BA79) -> 
A67: =IF(ISBLANK(Zakázka!E80),CHAR(94),IF(ISTEXT(Zakázka!E80),CHAR(32),Zakázka!E80)) -> ^ | B67: =IF(ISBLANK(Zakázka!E80),CHAR(32),Zakázka!E80) ->  | C67: =IF(ISBLANK(Zakázka!BG80),CHAR(32),Zakázka!BG80) ->  | D67: =IF(ISBLANK(Zakázka!BH80),CHAR(32),Zakázka!BH80) ->  | E67: =IF(ISBLANK(Zakázka!E80),CHAR(32),Zakázka!$I$11) ->  | F67: =IF(ISBLANK(Zakázka!E80),CHAR(32),Zakázka!$I$10) ->  | G67: =IF(ISBLANK(Zakázka!U80),CHAR(32),Zakázka!U80) ->  | H67: =IF(ISBLANK(Zakázka!S80),CHAR(32),Zakázka!S80) ->  | I67: =IF(ISBLANK(Zakázka!E80),CHAR(32),(Zakázka!$I$12)) ->  | L67: =IF(ISBLANK(Zakázka!BA80),CHAR(32),Zakázka!BA80) -> 
A68: =IF(ISBLANK(Zakázka!E81),CHAR(94),IF(ISTEXT(Zakázka!E81),CHAR(32),Zakázka!E81)) -> ^ | B68: =IF(ISBLANK(Zakázka!E81),CHAR(32),Zakázka!E81) ->  | C68: =IF(ISBLANK(Zakázka!BG81),CHAR(32),Zakázka!BG81) ->  | D68: =IF(ISBLANK(Zakázka!BH81),CHAR(32),Zakázka!BH81) ->  | E68: =IF(ISBLANK(Zakázka!E81),CHAR(32),Zakázka!$I$11) ->  | F68: =IF(ISBLANK(Zakázka!E81),CHAR(32),Zakázka!$I$10) ->  | G68: =IF(ISBLANK(Zakázka!U81),CHAR(32),Zakázka!U81) ->  | H68: =IF(ISBLANK(Zakázka!S81),CHAR(32),Zakázka!S81) ->  | I68: =IF(ISBLANK(Zakázka!E81),CHAR(32),(Zakázka!$I$12)) ->  | L68: =IF(ISBLANK(Zakázka!BA81),CHAR(32),Zakázka!BA81) -> 
A69: =IF(ISBLANK(Zakázka!E82),CHAR(94),IF(ISTEXT(Zakázka!E82),CHAR(32),Zakázka!E82)) -> ^ | B69: =IF(ISBLANK(Zakázka!E82),CHAR(32),Zakázka!E82) ->  | C69: =IF(ISBLANK(Zakázka!BG82),CHAR(32),Zakázka!BG82) ->  | D69: =IF(ISBLANK(Zakázka!BH82),CHAR(32),Zakázka!BH82) ->  | E69: =IF(ISBLANK(Zakázka!E82),CHAR(32),Zakázka!$I$11) ->  | F69: =IF(ISBLANK(Zakázka!E82),CHAR(32),Zakázka!$I$10) ->  | G69: =IF(ISBLANK(Zakázka!U82),CHAR(32),Zakázka!U82) ->  | H69: =IF(ISBLANK(Zakázka!S82),CHAR(32),Zakázka!S82) ->  | I69: =IF(ISBLANK(Zakázka!E82),CHAR(32),(Zakázka!$I$12)) ->  | L69: =IF(ISBLANK(Zakázka!BA82),CHAR(32),Zakázka!BA82) -> 
A70: =IF(ISBLANK(Zakázka!E83),CHAR(94),IF(ISTEXT(Zakázka!E83),CHAR(32),Zakázka!E83)) -> ^ | B70: =IF(ISBLANK(Zakázka!E83),CHAR(32),Zakázka!E83) ->  | C70: =IF(ISBLANK(Zakázka!BG83),CHAR(32),Zakázka!BG83) ->  | D70: =IF(ISBLANK(Zakázka!BH83),CHAR(32),Zakázka!BH83) ->  | E70: =IF(ISBLANK(Zakázka!E83),CHAR(32),Zakázka!$I$11) ->  | F70: =IF(ISBLANK(Zakázka!E83),CHAR(32),Zakázka!$I$10) ->  | G70: =IF(ISBLANK(Zakázka!U83),CHAR(32),Zakázka!U83) ->  | H70: =IF(ISBLANK(Zakázka!S83),CHAR(32),Zakázka!S83) ->  | I70: =IF(ISBLANK(Zakázka!E83),CHAR(32),(Zakázka!$I$12)) ->  | L70: =IF(ISBLANK(Zakázka!BA83),CHAR(32),Zakázka!BA83) -> 
A71: =IF(ISBLANK(Zakázka!E84),CHAR(94),IF(ISTEXT(Zakázka!E84),CHAR(32),Zakázka!E84)) -> ^ | B71: =IF(ISBLANK(Zakázka!E84),CHAR(32),Zakázka!E84) ->  | C71: =IF(ISBLANK(Zakázka!BG84),CHAR(32),Zakázka!BG84) ->  | D71: =IF(ISBLANK(Zakázka!BH84),CHAR(32),Zakázka!BH84) ->  | E71: =IF(ISBLANK(Zakázka!E84),CHAR(32),Zakázka!$I$11) ->  | F71: =IF(ISBLANK(Zakázka!E84),CHAR(32),Zakázka!$I$10) ->  | G71: =IF(ISBLANK(Zakázka!U84),CHAR(32),Zakázka!U84) ->  | H71: =IF(ISBLANK(Zakázka!S84),CHAR(32),Zakázka!S84) ->  | I71: =IF(ISBLANK(Zakázka!E84),CHAR(32),(Zakázka!$I$12)) ->  | L71: =IF(ISBLANK(Zakázka!BA84),CHAR(32),Zakázka!BA84) -> 
A72: =IF(ISBLANK(Zakázka!E85),CHAR(94),IF(ISTEXT(Zakázka!E85),CHAR(32),Zakázka!E85)) -> ^ | B72: =IF(ISBLANK(Zakázka!E85),CHAR(32),Zakázka!E85) ->  | C72: =IF(ISBLANK(Zakázka!BG85),CHAR(32),Zakázka!BG85) ->  | D72: =IF(ISBLANK(Zakázka!BH85),CHAR(32),Zakázka!BH85) ->  | E72: =IF(ISBLANK(Zakázka!E85),CHAR(32),Zakázka!$I$11) ->  | F72: =IF(ISBLANK(Zakázka!E85),CHAR(32),Zakázka!$I$10) ->  | G72: =IF(ISBLANK(Zakázka!U85),CHAR(32),Zakázka!U85) ->  | H72: =IF(ISBLANK(Zakázka!S85),CHAR(32),Zakázka!S85) ->  | I72: =IF(ISBLANK(Zakázka!E85),CHAR(32),(Zakázka!$I$12)) ->  | L72: =IF(ISBLANK(Zakázka!BA85),CHAR(32),Zakázka!BA85) -> 
A73: =IF(ISBLANK(Zakázka!E86),CHAR(94),IF(ISTEXT(Zakázka!E86),CHAR(32),Zakázka!E86)) -> ^ | B73: =IF(ISBLANK(Zakázka!E86),CHAR(32),Zakázka!E86) ->  | C73: =IF(ISBLANK(Zakázka!BG86),CHAR(32),Zakázka!BG86) ->  | D73: =IF(ISBLANK(Zakázka!BH86),CHAR(32),Zakázka!BH86) ->  | E73: =IF(ISBLANK(Zakázka!E86),CHAR(32),Zakázka!$I$11) ->  | F73: =IF(ISBLANK(Zakázka!E86),CHAR(32),Zakázka!$I$10) ->  | G73: =IF(ISBLANK(Zakázka!U86),CHAR(32),Zakázka!U86) ->  | H73: =IF(ISBLANK(Zakázka!S86),CHAR(32),Zakázka!S86) ->  | I73: =IF(ISBLANK(Zakázka!E86),CHAR(32),(Zakázka!$I$12)) ->  | L73: =IF(ISBLANK(Zakázka!BA86),CHAR(32),Zakázka!BA86) -> 
A74: =IF(ISBLANK(Zakázka!E87),CHAR(94),IF(ISTEXT(Zakázka!E87),CHAR(32),Zakázka!E87)) -> ^ | B74: =IF(ISBLANK(Zakázka!E87),CHAR(32),Zakázka!E87) ->  | C74: =IF(ISBLANK(Zakázka!BG87),CHAR(32),Zakázka!BG87) ->  | D74: =IF(ISBLANK(Zakázka!BH87),CHAR(32),Zakázka!BH87) ->  | E74: =IF(ISBLANK(Zakázka!E87),CHAR(32),Zakázka!$I$11) ->  | F74: =IF(ISBLANK(Zakázka!E87),CHAR(32),Zakázka!$I$10) ->  | G74: =IF(ISBLANK(Zakázka!U87),CHAR(32),Zakázka!U87) ->  | H74: =IF(ISBLANK(Zakázka!S87),CHAR(32),Zakázka!S87) ->  | I74: =IF(ISBLANK(Zakázka!E87),CHAR(32),(Zakázka!$I$12)) ->  | L74: =IF(ISBLANK(Zakázka!BA87),CHAR(32),Zakázka!BA87) -> 
A75: =IF(ISBLANK(Zakázka!E88),CHAR(94),IF(ISTEXT(Zakázka!E88),CHAR(32),Zakázka!E88)) -> ^ | B75: =IF(ISBLANK(Zakázka!E88),CHAR(32),Zakázka!E88) ->  | C75: =IF(ISBLANK(Zakázka!BG88),CHAR(32),Zakázka!BG88) ->  | D75: =IF(ISBLANK(Zakázka!BH88),CHAR(32),Zakázka!BH88) ->  | E75: =IF(ISBLANK(Zakázka!E88),CHAR(32),Zakázka!$I$11) ->  | F75: =IF(ISBLANK(Zakázka!E88),CHAR(32),Zakázka!$I$10) ->  | G75: =IF(ISBLANK(Zakázka!U88),CHAR(32),Zakázka!U88) ->  | H75: =IF(ISBLANK(Zakázka!S88),CHAR(32),Zakázka!S88) ->  | I75: =IF(ISBLANK(Zakázka!E88),CHAR(32),(Zakázka!$I$12)) ->  | L75: =IF(ISBLANK(Zakázka!BA88),CHAR(32),Zakázka!BA88) -> 
A76: =IF(ISBLANK(Zakázka!E89),CHAR(94),IF(ISTEXT(Zakázka!E89),CHAR(32),Zakázka!E89)) -> ^ | B76: =IF(ISBLANK(Zakázka!E89),CHAR(32),Zakázka!E89) ->  | C76: =IF(ISBLANK(Zakázka!BG89),CHAR(32),Zakázka!BG89) ->  | D76: =IF(ISBLANK(Zakázka!BH89),CHAR(32),Zakázka!BH89) ->  | E76: =IF(ISBLANK(Zakázka!E89),CHAR(32),Zakázka!$I$11) ->  | F76: =IF(ISBLANK(Zakázka!E89),CHAR(32),Zakázka!$I$10) ->  | G76: =IF(ISBLANK(Zakázka!U89),CHAR(32),Zakázka!U89) ->  | H76: =IF(ISBLANK(Zakázka!S89),CHAR(32),Zakázka!S89) ->  | I76: =IF(ISBLANK(Zakázka!E89),CHAR(32),(Zakázka!$I$12)) ->  | L76: =IF(ISBLANK(Zakázka!BA89),CHAR(32),Zakázka!BA89) -> 
A77: =IF(ISBLANK(Zakázka!E90),CHAR(94),IF(ISTEXT(Zakázka!E90),CHAR(32),Zakázka!E90)) -> ^ | B77: =IF(ISBLANK(Zakázka!E90),CHAR(32),Zakázka!E90) ->  | C77: =IF(ISBLANK(Zakázka!BG90),CHAR(32),Zakázka!BG90) ->  | D77: =IF(ISBLANK(Zakázka!BH90),CHAR(32),Zakázka!BH90) ->  | E77: =IF(ISBLANK(Zakázka!E90),CHAR(32),Zakázka!$I$11) ->  | F77: =IF(ISBLANK(Zakázka!E90),CHAR(32),Zakázka!$I$10) ->  | G77: =IF(ISBLANK(Zakázka!U90),CHAR(32),Zakázka!U90) ->  | H77: =IF(ISBLANK(Zakázka!S90),CHAR(32),Zakázka!S90) ->  | I77: =IF(ISBLANK(Zakázka!E90),CHAR(32),(Zakázka!$I$12)) ->  | L77: =IF(ISBLANK(Zakázka!BA90),CHAR(32),Zakázka!BA90) -> 
A78: =IF(ISBLANK(Zakázka!E91),CHAR(94),IF(ISTEXT(Zakázka!E91),CHAR(32),Zakázka!E91)) -> ^ | B78: =IF(ISBLANK(Zakázka!E91),CHAR(32),Zakázka!E91) ->  | C78: =IF(ISBLANK(Zakázka!BG91),CHAR(32),Zakázka!BG91) ->  | D78: =IF(ISBLANK(Zakázka!BH91),CHAR(32),Zakázka!BH91) ->  | E78: =IF(ISBLANK(Zakázka!E91),CHAR(32),Zakázka!$I$11) ->  | F78: =IF(ISBLANK(Zakázka!E91),CHAR(32),Zakázka!$I$10) ->  | G78: =IF(ISBLANK(Zakázka!U91),CHAR(32),Zakázka!U91) ->  | H78: =IF(ISBLANK(Zakázka!S91),CHAR(32),Zakázka!S91) ->  | I78: =IF(ISBLANK(Zakázka!E91),CHAR(32),(Zakázka!$I$12)) ->  | L78: =IF(ISBLANK(Zakázka!BA91),CHAR(32),Zakázka!BA91) -> 
A79: =IF(ISBLANK(Zakázka!E92),CHAR(94),IF(ISTEXT(Zakázka!E92),CHAR(32),Zakázka!E92)) -> ^ | B79: =IF(ISBLANK(Zakázka!E92),CHAR(32),Zakázka!E92) ->  | C79: =IF(ISBLANK(Zakázka!BG92),CHAR(32),Zakázka!BG92) ->  | D79: =IF(ISBLANK(Zakázka!BH92),CHAR(32),Zakázka!BH92) ->  | E79: =IF(ISBLANK(Zakázka!E92),CHAR(32),Zakázka!$I$11) ->  | F79: =IF(ISBLANK(Zakázka!E92),CHAR(32),Zakázka!$I$10) ->  | G79: =IF(ISBLANK(Zakázka!U92),CHAR(32),Zakázka!U92) ->  | H79: =IF(ISBLANK(Zakázka!S92),CHAR(32),Zakázka!S92) ->  | I79: =IF(ISBLANK(Zakázka!E92),CHAR(32),(Zakázka!$I$12)) ->  | L79: =IF(ISBLANK(Zakázka!BA92),CHAR(32),Zakázka!BA92) -> 
A80: =IF(ISBLANK(Zakázka!E93),CHAR(94),IF(ISTEXT(Zakázka!E93),CHAR(32),Zakázka!E93)) -> ^ | B80: =IF(ISBLANK(Zakázka!E93),CHAR(32),Zakázka!E93) ->  | C80: =IF(ISBLANK(Zakázka!BG93),CHAR(32),Zakázka!BG93) ->  | D80: =IF(ISBLANK(Zakázka!BH93),CHAR(32),Zakázka!BH93) ->  | E80: =IF(ISBLANK(Zakázka!E93),CHAR(32),Zakázka!$I$11) ->  | F80: =IF(ISBLANK(Zakázka!E93),CHAR(32),Zakázka!$I$10) ->  | G80: =IF(ISBLANK(Zakázka!U93),CHAR(32),Zakázka!U93) ->  | H80: =IF(ISBLANK(Zakázka!S93),CHAR(32),Zakázka!S93) ->  | I80: =IF(ISBLANK(Zakázka!E93),CHAR(32),(Zakázka!$I$12)) ->  | L80: =IF(ISBLANK(Zakázka!BA93),CHAR(32),Zakázka!BA93) -> 
A81: =IF(ISBLANK(Zakázka!E94),CHAR(94),IF(ISTEXT(Zakázka!E94),CHAR(32),Zakázka!E94)) -> ^ | B81: =IF(ISBLANK(Zakázka!E94),CHAR(32),Zakázka!E94) ->  | C81: =IF(ISBLANK(Zakázka!BG94),CHAR(32),Zakázka!BG94) ->  | D81: =IF(ISBLANK(Zakázka!BH94),CHAR(32),Zakázka!BH94) ->  | E81: =IF(ISBLANK(Zakázka!E94),CHAR(32),Zakázka!$I$11) ->  | F81: =IF(ISBLANK(Zakázka!E94),CHAR(32),Zakázka!$I$10) ->  | G81: =IF(ISBLANK(Zakázka!U94),CHAR(32),Zakázka!U94) ->  | H81: =IF(ISBLANK(Zakázka!S94),CHAR(32),Zakázka!S94) ->  | I81: =IF(ISBLANK(Zakázka!E94),CHAR(32),(Zakázka!$I$12)) ->  | L81: =IF(ISBLANK(Zakázka!BA94),CHAR(32),Zakázka!BA94) -> 
A82: =IF(ISBLANK(Zakázka!E95),CHAR(94),IF(ISTEXT(Zakázka!E95),CHAR(32),Zakázka!E95)) -> ^ | B82: =IF(ISBLANK(Zakázka!E95),CHAR(32),Zakázka!E95) ->  | C82: =IF(ISBLANK(Zakázka!BG95),CHAR(32),Zakázka!BG95) ->  | D82: =IF(ISBLANK(Zakázka!BH95),CHAR(32),Zakázka!BH95) ->  | E82: =IF(ISBLANK(Zakázka!E95),CHAR(32),Zakázka!$I$11) ->  | F82: =IF(ISBLANK(Zakázka!E95),CHAR(32),Zakázka!$I$10) ->  | G82: =IF(ISBLANK(Zakázka!U95),CHAR(32),Zakázka!U95) ->  | H82: =IF(ISBLANK(Zakázka!S95),CHAR(32),Zakázka!S95) ->  | I82: =IF(ISBLANK(Zakázka!E95),CHAR(32),(Zakázka!$I$12)) ->  | L82: =IF(ISBLANK(Zakázka!BA95),CHAR(32),Zakázka!BA95) -> 
A83: =IF(ISBLANK(Zakázka!E96),CHAR(94),IF(ISTEXT(Zakázka!E96),CHAR(32),Zakázka!E96)) -> ^ | B83: =IF(ISBLANK(Zakázka!E96),CHAR(32),Zakázka!E96) ->  | C83: =IF(ISBLANK(Zakázka!BG96),CHAR(32),Zakázka!BG96) ->  | D83: =IF(ISBLANK(Zakázka!BH96),CHAR(32),Zakázka!BH96) ->  | E83: =IF(ISBLANK(Zakázka!E96),CHAR(32),Zakázka!$I$11) ->  | F83: =IF(ISBLANK(Zakázka!E96),CHAR(32),Zakázka!$I$10) ->  | G83: =IF(ISBLANK(Zakázka!U96),CHAR(32),Zakázka!U96) ->  | H83: =IF(ISBLANK(Zakázka!S96),CHAR(32),Zakázka!S96) ->  | I83: =IF(ISBLANK(Zakázka!E96),CHAR(32),(Zakázka!$I$12)) ->  | L83: =IF(ISBLANK(Zakázka!BA96),CHAR(32),Zakázka!BA96) -> 
A84: =IF(ISBLANK(Zakázka!E97),CHAR(94),IF(ISTEXT(Zakázka!E97),CHAR(32),Zakázka!E97)) -> ^ | B84: =IF(ISBLANK(Zakázka!E97),CHAR(32),Zakázka!E97) ->  | C84: =IF(ISBLANK(Zakázka!BG97),CHAR(32),Zakázka!BG97) ->  | D84: =IF(ISBLANK(Zakázka!BH97),CHAR(32),Zakázka!BH97) ->  | E84: =IF(ISBLANK(Zakázka!E97),CHAR(32),Zakázka!$I$11) ->  | F84: =IF(ISBLANK(Zakázka!E97),CHAR(32),Zakázka!$I$10) ->  | G84: =IF(ISBLANK(Zakázka!U97),CHAR(32),Zakázka!U97) ->  | H84: =IF(ISBLANK(Zakázka!S97),CHAR(32),Zakázka!S97) ->  | I84: =IF(ISBLANK(Zakázka!E97),CHAR(32),(Zakázka!$I$12)) ->  | L84: =IF(ISBLANK(Zakázka!BA97),CHAR(32),Zakázka!BA97) -> 
A85: =IF(ISBLANK(Zakázka!E98),CHAR(94),IF(ISTEXT(Zakázka!E98),CHAR(32),Zakázka!E98)) -> ^ | B85: =IF(ISBLANK(Zakázka!E98),CHAR(32),Zakázka!E98) ->  | C85: =IF(ISBLANK(Zakázka!BG98),CHAR(32),Zakázka!BG98) ->  | D85: =IF(ISBLANK(Zakázka!BH98),CHAR(32),Zakázka!BH98) ->  | E85: =IF(ISBLANK(Zakázka!E98),CHAR(32),Zakázka!$I$11) ->  | F85: =IF(ISBLANK(Zakázka!E98),CHAR(32),Zakázka!$I$10) ->  | G85: =IF(ISBLANK(Zakázka!U98),CHAR(32),Zakázka!U98) ->  | H85: =IF(ISBLANK(Zakázka!S98),CHAR(32),Zakázka!S98) ->  | I85: =IF(ISBLANK(Zakázka!E98),CHAR(32),(Zakázka!$I$12)) ->  | L85: =IF(ISBLANK(Zakázka!BA98),CHAR(32),Zakázka!BA98) -> 
A86: =IF(ISBLANK(Zakázka!E99),CHAR(94),IF(ISTEXT(Zakázka!E99),CHAR(32),Zakázka!E99)) -> ^ | B86: =IF(ISBLANK(Zakázka!E99),CHAR(32),Zakázka!E99) ->  | C86: =IF(ISBLANK(Zakázka!BG99),CHAR(32),Zakázka!BG99) ->  | D86: =IF(ISBLANK(Zakázka!BH99),CHAR(32),Zakázka!BH99) ->  | E86: =IF(ISBLANK(Zakázka!E99),CHAR(32),Zakázka!$I$11) ->  | F86: =IF(ISBLANK(Zakázka!E99),CHAR(32),Zakázka!$I$10) ->  | G86: =IF(ISBLANK(Zakázka!U99),CHAR(32),Zakázka!U99) ->  | H86: =IF(ISBLANK(Zakázka!S99),CHAR(32),Zakázka!S99) ->  | I86: =IF(ISBLANK(Zakázka!E99),CHAR(32),(Zakázka!$I$12)) ->  | L86: =IF(ISBLANK(Zakázka!BA99),CHAR(32),Zakázka!BA99) -> 
A87: =IF(ISBLANK(Zakázka!E100),CHAR(94),IF(ISTEXT(Zakázka!E100),CHAR(32),Zakázka!E100)) -> ^ | B87: =IF(ISBLANK(Zakázka!E100),CHAR(32),Zakázka!E100) ->  | C87: =IF(ISBLANK(Zakázka!BG100),CHAR(32),Zakázka!BG100) ->  | D87: =IF(ISBLANK(Zakázka!BH100),CHAR(32),Zakázka!BH100) ->  | E87: =IF(ISBLANK(Zakázka!E100),CHAR(32),Zakázka!$I$11) ->  | F87: =IF(ISBLANK(Zakázka!E100),CHAR(32),Zakázka!$I$10) ->  | G87: =IF(ISBLANK(Zakázka!U100),CHAR(32),Zakázka!U100) ->  | H87: =IF(ISBLANK(Zakázka!S100),CHAR(32),Zakázka!S100) ->  | I87: =IF(ISBLANK(Zakázka!E100),CHAR(32),(Zakázka!$I$12)) ->  | L87: =IF(ISBLANK(Zakázka!BA100),CHAR(32),Zakázka!BA100) -> 
A88: =IF(ISBLANK(Zakázka!E101),CHAR(94),IF(ISTEXT(Zakázka!E101),CHAR(32),Zakázka!E101)) -> ^ | B88: =IF(ISBLANK(Zakázka!E101),CHAR(32),Zakázka!E101) ->  | C88: =IF(ISBLANK(Zakázka!BG101),CHAR(32),Zakázka!BG101) ->  | D88: =IF(ISBLANK(Zakázka!BH101),CHAR(32),Zakázka!BH101) ->  | E88: =IF(ISBLANK(Zakázka!E101),CHAR(32),Zakázka!$I$11) ->  | F88: =IF(ISBLANK(Zakázka!E101),CHAR(32),Zakázka!$I$10) ->  | G88: =IF(ISBLANK(Zakázka!U101),CHAR(32),Zakázka!U101) ->  | H88: =IF(ISBLANK(Zakázka!S101),CHAR(32),Zakázka!S101) ->  | I88: =IF(ISBLANK(Zakázka!E101),CHAR(32),(Zakázka!$I$12)) ->  | L88: =IF(ISBLANK(Zakázka!BA101),CHAR(32),Zakázka!BA101) -> 
A89: =IF(ISBLANK(Zakázka!E102),CHAR(94),IF(ISTEXT(Zakázka!E102),CHAR(32),Zakázka!E102)) -> ^ | B89: =IF(ISBLANK(Zakázka!E102),CHAR(32),Zakázka!E102) ->  | C89: =IF(ISBLANK(Zakázka!BG102),CHAR(32),Zakázka!BG102) ->  | D89: =IF(ISBLANK(Zakázka!BH102),CHAR(32),Zakázka!BH102) ->  | E89: =IF(ISBLANK(Zakázka!E102),CHAR(32),Zakázka!$I$11) ->  | F89: =IF(ISBLANK(Zakázka!E102),CHAR(32),Zakázka!$I$10) ->  | G89: =IF(ISBLANK(Zakázka!U102),CHAR(32),Zakázka!U102) ->  | H89: =IF(ISBLANK(Zakázka!S102),CHAR(32),Zakázka!S102) ->  | I89: =IF(ISBLANK(Zakázka!E102),CHAR(32),(Zakázka!$I$12)) ->  | L89: =IF(ISBLANK(Zakázka!BA102),CHAR(32),Zakázka!BA102) -> 
A90: =IF(ISBLANK(Zakázka!E103),CHAR(94),IF(ISTEXT(Zakázka!E103),CHAR(32),Zakázka!E103)) -> ^ | B90: =IF(ISBLANK(Zakázka!E103),CHAR(32),Zakázka!E103) ->  | C90: =IF(ISBLANK(Zakázka!BG103),CHAR(32),Zakázka!BG103) ->  | D90: =IF(ISBLANK(Zakázka!BH103),CHAR(32),Zakázka!BH103) ->  | E90: =IF(ISBLANK(Zakázka!E103),CHAR(32),Zakázka!$I$11) ->  | F90: =IF(ISBLANK(Zakázka!E103),CHAR(32),Zakázka!$I$10) ->  | G90: =IF(ISBLANK(Zakázka!U103),CHAR(32),Zakázka!U103) ->  | H90: =IF(ISBLANK(Zakázka!S103),CHAR(32),Zakázka!S103) ->  | I90: =IF(ISBLANK(Zakázka!E103),CHAR(32),(Zakázka!$I$12)) ->  | L90: =IF(ISBLANK(Zakázka!BA103),CHAR(32),Zakázka!BA103) -> 
A91: =IF(ISBLANK(Zakázka!E104),CHAR(94),IF(ISTEXT(Zakázka!E104),CHAR(32),Zakázka!E104)) -> ^ | B91: =IF(ISBLANK(Zakázka!E104),CHAR(32),Zakázka!E104) ->  | C91: =IF(ISBLANK(Zakázka!BG104),CHAR(32),Zakázka!BG104) ->  | D91: =IF(ISBLANK(Zakázka!BH104),CHAR(32),Zakázka!BH104) ->  | E91: =IF(ISBLANK(Zakázka!E104),CHAR(32),Zakázka!$I$11) ->  | F91: =IF(ISBLANK(Zakázka!E104),CHAR(32),Zakázka!$I$10) ->  | G91: =IF(ISBLANK(Zakázka!U104),CHAR(32),Zakázka!U104) ->  | H91: =IF(ISBLANK(Zakázka!S104),CHAR(32),Zakázka!S104) ->  | I91: =IF(ISBLANK(Zakázka!E104),CHAR(32),(Zakázka!$I$12)) ->  | L91: =IF(ISBLANK(Zakázka!BA104),CHAR(32),Zakázka!BA104) -> 
A92: =IF(ISBLANK(Zakázka!E105),CHAR(94),IF(ISTEXT(Zakázka!E105),CHAR(32),Zakázka!E105)) -> ^ | B92: =IF(ISBLANK(Zakázka!E105),CHAR(32),Zakázka!E105) ->  | C92: =IF(ISBLANK(Zakázka!BG105),CHAR(32),Zakázka!BG105) ->  | D92: =IF(ISBLANK(Zakázka!BH105),CHAR(32),Zakázka!BH105) ->  | E92: =IF(ISBLANK(Zakázka!E105),CHAR(32),Zakázka!$I$11) ->  | F92: =IF(ISBLANK(Zakázka!E105),CHAR(32),Zakázka!$I$10) ->  | G92: =IF(ISBLANK(Zakázka!U105),CHAR(32),Zakázka!U105) ->  | H92: =IF(ISBLANK(Zakázka!S105),CHAR(32),Zakázka!S105) ->  | I92: =IF(ISBLANK(Zakázka!E105),CHAR(32),(Zakázka!$I$12)) ->  | L92: =IF(ISBLANK(Zakázka!BA105),CHAR(32),Zakázka!BA105) -> 
A93: =IF(ISBLANK(Zakázka!E106),CHAR(94),IF(ISTEXT(Zakázka!E106),CHAR(32),Zakázka!E106)) -> ^ | B93: =IF(ISBLANK(Zakázka!E106),CHAR(32),Zakázka!E106) ->  | C93: =IF(ISBLANK(Zakázka!BG106),CHAR(32),Zakázka!BG106) ->  | D93: =IF(ISBLANK(Zakázka!BH106),CHAR(32),Zakázka!BH106) ->  | E93: =IF(ISBLANK(Zakázka!E106),CHAR(32),Zakázka!$I$11) ->  | F93: =IF(ISBLANK(Zakázka!E106),CHAR(32),Zakázka!$I$10) ->  | G93: =IF(ISBLANK(Zakázka!U106),CHAR(32),Zakázka!U106) ->  | H93: =IF(ISBLANK(Zakázka!S106),CHAR(32),Zakázka!S106) ->  | I93: =IF(ISBLANK(Zakázka!E106),CHAR(32),(Zakázka!$I$12)) ->  | L93: =IF(ISBLANK(Zakázka!BA106),CHAR(32),Zakázka!BA106) -> 
A94: =IF(ISBLANK(Zakázka!E107),CHAR(94),IF(ISTEXT(Zakázka!E107),CHAR(32),Zakázka!E107)) -> ^ | B94: =IF(ISBLANK(Zakázka!E107),CHAR(32),Zakázka!E107) ->  | C94: =IF(ISBLANK(Zakázka!BG107),CHAR(32),Zakázka!BG107) ->  | D94: =IF(ISBLANK(Zakázka!BH107),CHAR(32),Zakázka!BH107) ->  | E94: =IF(ISBLANK(Zakázka!E107),CHAR(32),Zakázka!$I$11) ->  | F94: =IF(ISBLANK(Zakázka!E107),CHAR(32),Zakázka!$I$10) ->  | G94: =IF(ISBLANK(Zakázka!U107),CHAR(32),Zakázka!U107) ->  | H94: =IF(ISBLANK(Zakázka!S107),CHAR(32),Zakázka!S107) ->  | I94: =IF(ISBLANK(Zakázka!E107),CHAR(32),(Zakázka!$I$12)) ->  | L94: =IF(ISBLANK(Zakázka!BA107),CHAR(32),Zakázka!BA107) -> 
A95: =IF(ISBLANK(Zakázka!E108),CHAR(94),IF(ISTEXT(Zakázka!E108),CHAR(32),Zakázka!E108)) -> ^ | B95: =IF(ISBLANK(Zakázka!E108),CHAR(32),Zakázka!E108) ->  | C95: =IF(ISBLANK(Zakázka!BG108),CHAR(32),Zakázka!BG108) ->  | D95: =IF(ISBLANK(Zakázka!BH108),CHAR(32),Zakázka!BH108) ->  | E95: =IF(ISBLANK(Zakázka!E108),CHAR(32),Zakázka!$I$11) ->  | F95: =IF(ISBLANK(Zakázka!E108),CHAR(32),Zakázka!$I$10) ->  | G95: =IF(ISBLANK(Zakázka!U108),CHAR(32),Zakázka!U108) ->  | H95: =IF(ISBLANK(Zakázka!S108),CHAR(32),Zakázka!S108) ->  | I95: =IF(ISBLANK(Zakázka!E108),CHAR(32),(Zakázka!$I$12)) ->  | L95: =IF(ISBLANK(Zakázka!BA108),CHAR(32),Zakázka!BA108) -> 
A96: =IF(ISBLANK(Zakázka!E109),CHAR(94),IF(ISTEXT(Zakázka!E109),CHAR(32),Zakázka!E109)) -> ^ | B96: =IF(ISBLANK(Zakázka!E109),CHAR(32),Zakázka!E109) ->  | C96: =IF(ISBLANK(Zakázka!BG109),CHAR(32),Zakázka!BG109) ->  | D96: =IF(ISBLANK(Zakázka!BH109),CHAR(32),Zakázka!BH109) ->  | E96: =IF(ISBLANK(Zakázka!E109),CHAR(32),Zakázka!$I$11) ->  | F96: =IF(ISBLANK(Zakázka!E109),CHAR(32),Zakázka!$I$10) ->  | G96: =IF(ISBLANK(Zakázka!U109),CHAR(32),Zakázka!U109) ->  | H96: =IF(ISBLANK(Zakázka!S109),CHAR(32),Zakázka!S109) ->  | I96: =IF(ISBLANK(Zakázka!E109),CHAR(32),(Zakázka!$I$12)) ->  | L96: =IF(ISBLANK(Zakázka!BA109),CHAR(32),Zakázka!BA109) -> 
A97: =IF(ISBLANK(Zakázka!E110),CHAR(94),IF(ISTEXT(Zakázka!E110),CHAR(32),Zakázka!E110)) -> ^ | B97: =IF(ISBLANK(Zakázka!E110),CHAR(32),Zakázka!E110) ->  | C97: =IF(ISBLANK(Zakázka!BG110),CHAR(32),Zakázka!BG110) ->  | D97: =IF(ISBLANK(Zakázka!BH110),CHAR(32),Zakázka!BH110) ->  | E97: =IF(ISBLANK(Zakázka!E110),CHAR(32),Zakázka!$I$11) ->  | F97: =IF(ISBLANK(Zakázka!E110),CHAR(32),Zakázka!$I$10) ->  | G97: =IF(ISBLANK(Zakázka!U110),CHAR(32),Zakázka!U110) ->  | H97: =IF(ISBLANK(Zakázka!S110),CHAR(32),Zakázka!S110) ->  | I97: =IF(ISBLANK(Zakázka!E110),CHAR(32),(Zakázka!$I$12)) ->  | L97: =IF(ISBLANK(Zakázka!BA110),CHAR(32),Zakázka!BA110) -> 
A98: =IF(ISBLANK(Zakázka!E111),CHAR(94),IF(ISTEXT(Zakázka!E111),CHAR(32),Zakázka!E111)) -> ^ | B98: =IF(ISBLANK(Zakázka!E111),CHAR(32),Zakázka!E111) ->  | C98: =IF(ISBLANK(Zakázka!BG111),CHAR(32),Zakázka!BG111) ->  | D98: =IF(ISBLANK(Zakázka!BH111),CHAR(32),Zakázka!BH111) ->  | E98: =IF(ISBLANK(Zakázka!E111),CHAR(32),Zakázka!$I$11) ->  | F98: =IF(ISBLANK(Zakázka!E111),CHAR(32),Zakázka!$I$10) ->  | G98: =IF(ISBLANK(Zakázka!U111),CHAR(32),Zakázka!U111) ->  | H98: =IF(ISBLANK(Zakázka!S111),CHAR(32),Zakázka!S111) ->  | I98: =IF(ISBLANK(Zakázka!E111),CHAR(32),(Zakázka!$I$12)) ->  | L98: =IF(ISBLANK(Zakázka!BA111),CHAR(32),Zakázka!BA111) -> 
A99: =IF(ISBLANK(Zakázka!E112),CHAR(94),IF(ISTEXT(Zakázka!E112),CHAR(32),Zakázka!E112)) -> ^ | B99: =IF(ISBLANK(Zakázka!E112),CHAR(32),Zakázka!E112) ->  | C99: =IF(ISBLANK(Zakázka!BG112),CHAR(32),Zakázka!BG112) ->  | D99: =IF(ISBLANK(Zakázka!BH112),CHAR(32),Zakázka!BH112) ->  | E99: =IF(ISBLANK(Zakázka!E112),CHAR(32),Zakázka!$I$11) ->  | F99: =IF(ISBLANK(Zakázka!E112),CHAR(32),Zakázka!$I$10) ->  | G99: =IF(ISBLANK(Zakázka!U112),CHAR(32),Zakázka!U112) ->  | H99: =IF(ISBLANK(Zakázka!S112),CHAR(32),Zakázka!S112) ->  | I99: =IF(ISBLANK(Zakázka!E112),CHAR(32),(Zakázka!$I$12)) ->  | L99: =IF(ISBLANK(Zakázka!BA112),CHAR(32),Zakázka!BA112) -> 
A100: =IF(ISBLANK(Zakázka!E113),CHAR(94),IF(ISTEXT(Zakázka!E113),CHAR(32),Zakázka!E113)) -> ^ | B100: =IF(ISBLANK(Zakázka!E113),CHAR(32),Zakázka!E113) ->  | C100: =IF(ISBLANK(Zakázka!BG113),CHAR(32),Zakázka!BG113) ->  | D100: =IF(ISBLANK(Zakázka!BH113),CHAR(32),Zakázka!BH113) ->  | E100: =IF(ISBLANK(Zakázka!E113),CHAR(32),Zakázka!$I$11) ->  | F100: =IF(ISBLANK(Zakázka!E113),CHAR(32),Zakázka!$I$10) ->  | G100: =IF(ISBLANK(Zakázka!U113),CHAR(32),Zakázka!U113) ->  | H100: =IF(ISBLANK(Zakázka!S113),CHAR(32),Zakázka!S113) ->  | I100: =IF(ISBLANK(Zakázka!E113),CHAR(32),(Zakázka!$I$12)) ->  | L100: =IF(ISBLANK(Zakázka!BA113),CHAR(32),Zakázka!BA113) -> 
A101: =IF(ISBLANK(Zakázka!E114),CHAR(94),IF(ISTEXT(Zakázka!E114),CHAR(32),Zakázka!E114)) -> ^ | B101: =IF(ISBLANK(Zakázka!E114),CHAR(32),Zakázka!E114) ->  | C101: =IF(ISBLANK(Zakázka!BG114),CHAR(32),Zakázka!BG114) ->  | D101: =IF(ISBLANK(Zakázka!BH114),CHAR(32),Zakázka!BH114) ->  | E101: =IF(ISBLANK(Zakázka!E114),CHAR(32),Zakázka!$I$11) ->  | F101: =IF(ISBLANK(Zakázka!E114),CHAR(32),Zakázka!$I$10) ->  | G101: =IF(ISBLANK(Zakázka!U114),CHAR(32),Zakázka!U114) ->  | H101: =IF(ISBLANK(Zakázka!S114),CHAR(32),Zakázka!S114) ->  | I101: =IF(ISBLANK(Zakázka!E114),CHAR(32),(Zakázka!$I$12)) ->  | L101: =IF(ISBLANK(Zakázka!BA114),CHAR(32),Zakázka!BA114) -> 
A102: =IF(ISBLANK(Zakázka!E115),CHAR(94),IF(ISTEXT(Zakázka!E115),CHAR(32),Zakázka!E115)) -> ^ | B102: =IF(ISBLANK(Zakázka!E115),CHAR(32),Zakázka!E115) ->  | C102: =IF(ISBLANK(Zakázka!BG115),CHAR(32),Zakázka!BG115) ->  | D102: =IF(ISBLANK(Zakázka!BH115),CHAR(32),Zakázka!BH115) ->  | E102: =IF(ISBLANK(Zakázka!E115),CHAR(32),Zakázka!$I$11) ->  | F102: =IF(ISBLANK(Zakázka!E115),CHAR(32),Zakázka!$I$10) ->  | G102: =IF(ISBLANK(Zakázka!U115),CHAR(32),Zakázka!U115) ->  | H102: =IF(ISBLANK(Zakázka!S115),CHAR(32),Zakázka!S115) ->  | I102: =IF(ISBLANK(Zakázka!E115),CHAR(32),(Zakázka!$I$12)) ->  | L102: =IF(ISBLANK(Zakázka!BA115),CHAR(32),Zakázka!BA115) -> 
A103: =IF(ISBLANK(Zakázka!E116),CHAR(94),IF(ISTEXT(Zakázka!E116),CHAR(32),Zakázka!E116)) -> ^ | B103: =IF(ISBLANK(Zakázka!E116),CHAR(32),Zakázka!E116) ->  | C103: =IF(ISBLANK(Zakázka!BG116),CHAR(32),Zakázka!BG116) ->  | D103: =IF(ISBLANK(Zakázka!BH116),CHAR(32),Zakázka!BH116) ->  | E103: =IF(ISBLANK(Zakázka!E116),CHAR(32),Zakázka!$I$11) ->  | F103: =IF(ISBLANK(Zakázka!E116),CHAR(32),Zakázka!$I$10) ->  | G103: =IF(ISBLANK(Zakázka!U116),CHAR(32),Zakázka!U116) ->  | H103: =IF(ISBLANK(Zakázka!S116),CHAR(32),Zakázka!S116) ->  | I103: =IF(ISBLANK(Zakázka!E116),CHAR(32),(Zakázka!$I$12)) ->  | L103: =IF(ISBLANK(Zakázka!BA116),CHAR(32),Zakázka!BA116) -> 
A104: =IF(ISBLANK(Zakázka!E117),CHAR(94),IF(ISTEXT(Zakázka!E117),CHAR(32),Zakázka!E117)) -> ^ | B104: =IF(ISBLANK(Zakázka!E117),CHAR(32),Zakázka!E117) ->  | C104: =IF(ISBLANK(Zakázka!BG117),CHAR(32),Zakázka!BG117) ->  | D104: =IF(ISBLANK(Zakázka!BH117),CHAR(32),Zakázka!BH117) ->  | E104: =IF(ISBLANK(Zakázka!E117),CHAR(32),Zakázka!$I$11) ->  | F104: =IF(ISBLANK(Zakázka!E117),CHAR(32),Zakázka!$I$10) ->  | G104: =IF(ISBLANK(Zakázka!U117),CHAR(32),Zakázka!U117) ->  | H104: =IF(ISBLANK(Zakázka!S117),CHAR(32),Zakázka!S117) ->  | I104: =IF(ISBLANK(Zakázka!E117),CHAR(32),(Zakázka!$I$12)) ->  | L104: =IF(ISBLANK(Zakázka!BA117),CHAR(32),Zakázka!BA117) -> 
A105: =IF(ISBLANK(Zakázka!E118),CHAR(94),IF(ISTEXT(Zakázka!E118),CHAR(32),Zakázka!E118)) -> ^ | B105: =IF(ISBLANK(Zakázka!E118),CHAR(32),Zakázka!E118) ->  | C105: =IF(ISBLANK(Zakázka!BG118),CHAR(32),Zakázka!BG118) ->  | D105: =IF(ISBLANK(Zakázka!BH118),CHAR(32),Zakázka!BH118) ->  | E105: =IF(ISBLANK(Zakázka!E118),CHAR(32),Zakázka!$I$11) ->  | F105: =IF(ISBLANK(Zakázka!E118),CHAR(32),Zakázka!$I$10) ->  | G105: =IF(ISBLANK(Zakázka!U118),CHAR(32),Zakázka!U118) ->  | H105: =IF(ISBLANK(Zakázka!S118),CHAR(32),Zakázka!S118) ->  | I105: =IF(ISBLANK(Zakázka!E118),CHAR(32),(Zakázka!$I$12)) ->  | L105: =IF(ISBLANK(Zakázka!BA118),CHAR(32),Zakázka!BA118) -> 
A106: =IF(ISBLANK(Zakázka!E119),CHAR(94),IF(ISTEXT(Zakázka!E119),CHAR(32),Zakázka!E119)) -> ^ | B106: =IF(ISBLANK(Zakázka!E119),CHAR(32),Zakázka!E119) ->  | C106: =IF(ISBLANK(Zakázka!BG119),CHAR(32),Zakázka!BG119) ->  | D106: =IF(ISBLANK(Zakázka!BH119),CHAR(32),Zakázka!BH119) ->  | E106: =IF(ISBLANK(Zakázka!E119),CHAR(32),Zakázka!$I$11) ->  | F106: =IF(ISBLANK(Zakázka!E119),CHAR(32),Zakázka!$I$10) ->  | G106: =IF(ISBLANK(Zakázka!U119),CHAR(32),Zakázka!U119) ->  | H106: =IF(ISBLANK(Zakázka!S119),CHAR(32),Zakázka!S119) ->  | I106: =IF(ISBLANK(Zakázka!E119),CHAR(32),(Zakázka!$I$12)) ->  | L106: =IF(ISBLANK(Zakázka!BA119),CHAR(32),Zakázka!BA119) -> 
A107: =IF(ISBLANK(Zakázka!E120),CHAR(94),IF(ISTEXT(Zakázka!E120),CHAR(32),Zakázka!E120)) -> ^ | B107: =IF(ISBLANK(Zakázka!E120),CHAR(32),Zakázka!E120) ->  | C107: =IF(ISBLANK(Zakázka!BG120),CHAR(32),Zakázka!BG120) ->  | D107: =IF(ISBLANK(Zakázka!BH120),CHAR(32),Zakázka!BH120) ->  | E107: =IF(ISBLANK(Zakázka!E120),CHAR(32),Zakázka!$I$11) ->  | F107: =IF(ISBLANK(Zakázka!E120),CHAR(32),Zakázka!$I$10) ->  | G107: =IF(ISBLANK(Zakázka!U120),CHAR(32),Zakázka!U120) ->  | H107: =IF(ISBLANK(Zakázka!S120),CHAR(32),Zakázka!S120) ->  | I107: =IF(ISBLANK(Zakázka!E120),CHAR(32),(Zakázka!$I$12)) ->  | L107: =IF(ISBLANK(Zakázka!BA120),CHAR(32),Zakázka!BA120) -> 
A108: =IF(ISBLANK(Zakázka!E121),CHAR(94),IF(ISTEXT(Zakázka!E121),CHAR(32),Zakázka!E121)) -> ^ | B108: =IF(ISBLANK(Zakázka!E121),CHAR(32),Zakázka!E121) ->  | C108: =IF(ISBLANK(Zakázka!BG121),CHAR(32),Zakázka!BG121) ->  | D108: =IF(ISBLANK(Zakázka!BH121),CHAR(32),Zakázka!BH121) ->  | E108: =IF(ISBLANK(Zakázka!E121),CHAR(32),Zakázka!$I$11) ->  | F108: =IF(ISBLANK(Zakázka!E121),CHAR(32),Zakázka!$I$10) ->  | G108: =IF(ISBLANK(Zakázka!U121),CHAR(32),Zakázka!U121) ->  | H108: =IF(ISBLANK(Zakázka!S121),CHAR(32),Zakázka!S121) ->  | I108: =IF(ISBLANK(Zakázka!E121),CHAR(32),(Zakázka!$I$12)) ->  | L108: =IF(ISBLANK(Zakázka!BA121),CHAR(32),Zakázka!BA121) -> 
A109: =IF(ISBLANK(Zakázka!E122),CHAR(94),IF(ISTEXT(Zakázka!E122),CHAR(32),Zakázka!E122)) -> ^ | B109: =IF(ISBLANK(Zakázka!E122),CHAR(32),Zakázka!E122) ->  | C109: =IF(ISBLANK(Zakázka!BG122),CHAR(32),Zakázka!BG122) ->  | D109: =IF(ISBLANK(Zakázka!BH122),CHAR(32),Zakázka!BH122) ->  | E109: =IF(ISBLANK(Zakázka!E122),CHAR(32),Zakázka!$I$11) ->  | F109: =IF(ISBLANK(Zakázka!E122),CHAR(32),Zakázka!$I$10) ->  | G109: =IF(ISBLANK(Zakázka!U122),CHAR(32),Zakázka!U122) ->  | H109: =IF(ISBLANK(Zakázka!S122),CHAR(32),Zakázka!S122) ->  | I109: =IF(ISBLANK(Zakázka!E122),CHAR(32),(Zakázka!$I$12)) ->  | L109: =IF(ISBLANK(Zakázka!BA122),CHAR(32),Zakázka!BA122) -> 
B110: =IF(ISBLANK(Zakázka!E123),CHAR(32),Zakázka!E123) ->  | C110: =IF(ISBLANK(Zakázka!BG123),CHAR(32),Zakázka!BG123) ->  | D110: =IF(ISBLANK(Zakázka!BH123),CHAR(32),Zakázka!BH123) ->  | E110: =IF(ISBLANK(Zakázka!E123),CHAR(32),Zakázka!$I$11) ->  | F110: =IF(ISBLANK(Zakázka!E123),CHAR(32),Zakázka!$I$10) ->  | G110: =IF(ISBLANK(Zakázka!U123),CHAR(32),Zakázka!U123) ->  | H110: =IF(ISBLANK(Zakázka!S123),CHAR(32),Zakázka!S123) ->  | I110: =IF(ISBLANK(Zakázka!E123),CHAR(32),(Zakázka!$I$12)) ->  | L110: =IF(ISBLANK(Zakázka!BA123),CHAR(32),Zakázka!BA123) -> 
B111: =IF(ISBLANK(Zakázka!E124),CHAR(32),Zakázka!E124) ->  | C111: =IF(ISBLANK(Zakázka!BG124),CHAR(32),Zakázka!BG124) ->  | D111: =IF(ISBLANK(Zakázka!BH124),CHAR(32),Zakázka!BH124) ->  | E111: =IF(ISBLANK(Zakázka!E124),CHAR(32),Zakázka!$I$11) ->  | F111: =IF(ISBLANK(Zakázka!E124),CHAR(32),Zakázka!$I$10) ->  | G111: =IF(ISBLANK(Zakázka!U124),CHAR(32),Zakázka!U124) ->  | H111: =IF(ISBLANK(Zakázka!S124),CHAR(32),Zakázka!S124) ->  | I111: =IF(ISBLANK(Zakázka!E124),CHAR(32),(Zakázka!$I$12)) ->  | L111: =IF(ISBLANK(Zakázka!BA124),CHAR(32),Zakázka!BA124) -> 
B112: =IF(ISBLANK(Zakázka!E125),CHAR(32),Zakázka!E125) ->  | C112: =IF(ISBLANK(Zakázka!BG125),CHAR(32),Zakázka!BG125) ->  | D112: =IF(ISBLANK(Zakázka!BH125),CHAR(32),Zakázka!BH125) ->  | E112: =IF(ISBLANK(Zakázka!E125),CHAR(32),Zakázka!$I$11) ->  | F112: =IF(ISBLANK(Zakázka!E125),CHAR(32),Zakázka!$I$10) ->  | G112: =IF(ISBLANK(Zakázka!U125),CHAR(32),Zakázka!U125) ->  | H112: =IF(ISBLANK(Zakázka!S125),CHAR(32),Zakázka!S125) ->  | I112: =IF(ISBLANK(Zakázka!E125),CHAR(32),(Zakázka!$I$12)) ->  | L112: =IF(ISBLANK(Zakázka!BA125),CHAR(32),Zakázka!BA125) -> 
B113: =IF(ISBLANK(Zakázka!E126),CHAR(32),Zakázka!E126) ->  | C113: =IF(ISBLANK(Zakázka!BG126),CHAR(32),Zakázka!BG126) ->  | D113: =IF(ISBLANK(Zakázka!BH126),CHAR(32),Zakázka!BH126) ->  | E113: =IF(ISBLANK(Zakázka!E126),CHAR(32),Zakázka!$I$11) ->  | F113: =IF(ISBLANK(Zakázka!E126),CHAR(32),Zakázka!$I$10) ->  | G113: =IF(ISBLANK(Zakázka!U126),CHAR(32),Zakázka!U126) ->  | H113: =IF(ISBLANK(Zakázka!S126),CHAR(32),Zakázka!S126) ->  | I113: =IF(ISBLANK(Zakázka!E126),CHAR(32),(Zakázka!$I$12)) ->  | L113: =IF(ISBLANK(Zakázka!BA126),CHAR(32),Zakázka!BA126) -> 
B114: =IF(ISBLANK(Zakázka!E127),CHAR(32),Zakázka!E127) ->  | C114: =IF(ISBLANK(Zakázka!BG127),CHAR(32),Zakázka!BG127) ->  | D114: =IF(ISBLANK(Zakázka!BH127),CHAR(32),Zakázka!BH127) ->  | E114: =IF(ISBLANK(Zakázka!E127),CHAR(32),Zakázka!$I$11) ->  | F114: =IF(ISBLANK(Zakázka!E127),CHAR(32),Zakázka!$I$10) ->  | G114: =IF(ISBLANK(Zakázka!U127),CHAR(32),Zakázka!U127) ->  | H114: =IF(ISBLANK(Zakázka!S127),CHAR(32),Zakázka!S127) ->  | I114: =IF(ISBLANK(Zakázka!E127),CHAR(32),(Zakázka!$I$12)) ->  | L114: =IF(ISBLANK(Zakázka!BA127),CHAR(32),Zakázka!BA127) -> 
B115: =IF(ISBLANK(Zakázka!E128),CHAR(32),Zakázka!E128) ->  | C115: =IF(ISBLANK(Zakázka!BG128),CHAR(32),Zakázka!BG128) ->  | D115: =IF(ISBLANK(Zakázka!BH128),CHAR(32),Zakázka!BH128) ->  | E115: =IF(ISBLANK(Zakázka!E128),CHAR(32),Zakázka!$I$11) ->  | F115: =IF(ISBLANK(Zakázka!E128),CHAR(32),Zakázka!$I$10) ->  | G115: =IF(ISBLANK(Zakázka!U128),CHAR(32),Zakázka!U128) ->  | H115: =IF(ISBLANK(Zakázka!S128),CHAR(32),Zakázka!S128) ->  | I115: =IF(ISBLANK(Zakázka!E128),CHAR(32),(Zakázka!$I$12)) ->  | L115: =IF(ISBLANK(Zakázka!BA128),CHAR(32),Zakázka!BA128) -> 
B116: =IF(ISBLANK(Zakázka!E129),CHAR(32),Zakázka!E129) ->  | C116: =IF(ISBLANK(Zakázka!BG129),CHAR(32),Zakázka!BG129) ->  | D116: =IF(ISBLANK(Zakázka!BH129),CHAR(32),Zakázka!BH129) ->  | E116: =IF(ISBLANK(Zakázka!E129),CHAR(32),Zakázka!$I$11) ->  | F116: =IF(ISBLANK(Zakázka!E129),CHAR(32),Zakázka!$I$10) ->  | G116: =IF(ISBLANK(Zakázka!U129),CHAR(32),Zakázka!U129) ->  | H116: =IF(ISBLANK(Zakázka!S129),CHAR(32),Zakázka!S129) ->  | I116: =IF(ISBLANK(Zakázka!E129),CHAR(32),(Zakázka!$I$12)) ->  | L116: =IF(ISBLANK(Zakázka!BA129),CHAR(32),Zakázka!BA129) -> 
B117: =IF(ISBLANK(Zakázka!E130),CHAR(32),Zakázka!E130) ->  | C117: =IF(ISBLANK(Zakázka!BG130),CHAR(32),Zakázka!BG130) ->  | D117: =IF(ISBLANK(Zakázka!BH130),CHAR(32),Zakázka!BH130) ->  | E117: =IF(ISBLANK(Zakázka!E130),CHAR(32),Zakázka!$I$11) ->  | F117: =IF(ISBLANK(Zakázka!E130),CHAR(32),Zakázka!$I$10) ->  | G117: =IF(ISBLANK(Zakázka!U130),CHAR(32),Zakázka!U130) ->  | H117: =IF(ISBLANK(Zakázka!S130),CHAR(32),Zakázka!S130) ->  | I117: =IF(ISBLANK(Zakázka!E130),CHAR(32),(Zakázka!$I$12)) ->  | L117: =IF(ISBLANK(Zakázka!BA130),CHAR(32),Zakázka!BA130) -> 
B118: =IF(ISBLANK(Zakázka!E131),CHAR(32),Zakázka!E131) ->  | C118: =IF(ISBLANK(Zakázka!BG131),CHAR(32),Zakázka!BG131) ->  | D118: =IF(ISBLANK(Zakázka!BH131),CHAR(32),Zakázka!BH131) ->  | E118: =IF(ISBLANK(Zakázka!E131),CHAR(32),Zakázka!$I$11) ->  | F118: =IF(ISBLANK(Zakázka!E131),CHAR(32),Zakázka!$I$10) ->  | G118: =IF(ISBLANK(Zakázka!U131),CHAR(32),Zakázka!U131) ->  | H118: =IF(ISBLANK(Zakázka!S131),CHAR(32),Zakázka!S131) ->  | I118: =IF(ISBLANK(Zakázka!E131),CHAR(32),(Zakázka!$I$12)) ->  | L118: =IF(ISBLANK(Zakázka!BA131),CHAR(32),Zakázka!BA131) -> 
B119: =IF(ISBLANK(Zakázka!E132),CHAR(32),Zakázka!E132) ->  | C119: =IF(ISBLANK(Zakázka!BG132),CHAR(32),Zakázka!BG132) ->  | D119: =IF(ISBLANK(Zakázka!BH132),CHAR(32),Zakázka!BH132) ->  | E119: =IF(ISBLANK(Zakázka!E132),CHAR(32),Zakázka!$I$11) ->  | F119: =IF(ISBLANK(Zakázka!E132),CHAR(32),Zakázka!$I$10) ->  | G119: =IF(ISBLANK(Zakázka!U132),CHAR(32),Zakázka!U132) ->  | H119: =IF(ISBLANK(Zakázka!S132),CHAR(32),Zakázka!S132) ->  | I119: =IF(ISBLANK(Zakázka!E132),CHAR(32),(Zakázka!$I$12)) ->  | L119: =IF(ISBLANK(Zakázka!BA132),CHAR(32),Zakázka!BA132) -> 
B120: =IF(ISBLANK(Zakázka!E133),CHAR(32),Zakázka!E133) ->  | C120: =IF(ISBLANK(Zakázka!BG133),CHAR(32),Zakázka!BG133) ->  | D120: =IF(ISBLANK(Zakázka!BH133),CHAR(32),Zakázka!BH133) ->  | E120: =IF(ISBLANK(Zakázka!E133),CHAR(32),Zakázka!$I$11) ->  | F120: =IF(ISBLANK(Zakázka!E133),CHAR(32),Zakázka!$I$10) ->  | G120: =IF(ISBLANK(Zakázka!U133),CHAR(32),Zakázka!U133) ->  | H120: =IF(ISBLANK(Zakázka!S133),CHAR(32),Zakázka!S133) ->  | I120: =IF(ISBLANK(Zakázka!E133),CHAR(32),(Zakázka!$I$12)) ->  | L120: =IF(ISBLANK(Zakázka!BA133),CHAR(32),Zakázka!BA133) -> 
B121: =IF(ISBLANK(Zakázka!E134),CHAR(32),Zakázka!E134) ->  | C121: =IF(ISBLANK(Zakázka!BG134),CHAR(32),Zakázka!BG134) ->  | D121: =IF(ISBLANK(Zakázka!BH134),CHAR(32),Zakázka!BH134) ->  | E121: =IF(ISBLANK(Zakázka!E134),CHAR(32),Zakázka!$I$11) ->  | F121: =IF(ISBLANK(Zakázka!E134),CHAR(32),Zakázka!$I$10) ->  | G121: =IF(ISBLANK(Zakázka!U134),CHAR(32),Zakázka!U134) ->  | H121: =IF(ISBLANK(Zakázka!S134),CHAR(32),Zakázka!S134) ->  | I121: =IF(ISBLANK(Zakázka!E134),CHAR(32),(Zakázka!$I$12)) ->  | L121: =IF(ISBLANK(Zakázka!BA134),CHAR(32),Zakázka!BA134) -> 
B122: =IF(ISBLANK(Zakázka!E135),CHAR(32),Zakázka!E135) ->  | C122: =IF(ISBLANK(Zakázka!BG135),CHAR(32),Zakázka!BG135) ->  | D122: =IF(ISBLANK(Zakázka!BH135),CHAR(32),Zakázka!BH135) ->  | E122: =IF(ISBLANK(Zakázka!E135),CHAR(32),Zakázka!$I$11) ->  | F122: =IF(ISBLANK(Zakázka!E135),CHAR(32),Zakázka!$I$10) ->  | G122: =IF(ISBLANK(Zakázka!U135),CHAR(32),Zakázka!U135) ->  | H122: =IF(ISBLANK(Zakázka!S135),CHAR(32),Zakázka!S135) ->  | I122: =IF(ISBLANK(Zakázka!E135),CHAR(32),(Zakázka!$I$12)) ->  | L122: =IF(ISBLANK(Zakázka!BA135),CHAR(32),Zakázka!BA135) -> 
B123: =IF(ISBLANK(Zakázka!E136),CHAR(32),Zakázka!E136) ->  | C123: =IF(ISBLANK(Zakázka!BG136),CHAR(32),Zakázka!BG136) ->  | D123: =IF(ISBLANK(Zakázka!BH136),CHAR(32),Zakázka!BH136) ->  | E123: =IF(ISBLANK(Zakázka!E136),CHAR(32),Zakázka!$I$11) ->  | F123: =IF(ISBLANK(Zakázka!E136),CHAR(32),Zakázka!$I$10) ->  | G123: =IF(ISBLANK(Zakázka!U136),CHAR(32),Zakázka!U136) ->  | H123: =IF(ISBLANK(Zakázka!S136),CHAR(32),Zakázka!S136) ->  | I123: =IF(ISBLANK(Zakázka!E136),CHAR(32),(Zakázka!$I$12)) ->  | L123: =IF(ISBLANK(Zakázka!BA136),CHAR(32),Zakázka!BA136) -> 
B124: =IF(ISBLANK(Zakázka!E137),CHAR(32),Zakázka!E137) ->  | C124: =IF(ISBLANK(Zakázka!BG137),CHAR(32),Zakázka!BG137) ->  | D124: =IF(ISBLANK(Zakázka!BH137),CHAR(32),Zakázka!BH137) ->  | E124: =IF(ISBLANK(Zakázka!E137),CHAR(32),Zakázka!$I$11) ->  | F124: =IF(ISBLANK(Zakázka!E137),CHAR(32),Zakázka!$I$10) ->  | G124: =IF(ISBLANK(Zakázka!U137),CHAR(32),Zakázka!U137) ->  | H124: =IF(ISBLANK(Zakázka!S137),CHAR(32),Zakázka!S137) ->  | I124: =IF(ISBLANK(Zakázka!E137),CHAR(32),(Zakázka!$I$12)) ->  | L124: =IF(ISBLANK(Zakázka!BA137),CHAR(32),Zakázka!BA137) -> 
B125: =IF(ISBLANK(Zakázka!E138),CHAR(32),Zakázka!E138) ->  | C125: =IF(ISBLANK(Zakázka!BG138),CHAR(32),Zakázka!BG138) ->  | D125: =IF(ISBLANK(Zakázka!BH138),CHAR(32),Zakázka!BH138) ->  | E125: =IF(ISBLANK(Zakázka!E138),CHAR(32),Zakázka!$I$11) ->  | F125: =IF(ISBLANK(Zakázka!E138),CHAR(32),Zakázka!$I$10) ->  | G125: =IF(ISBLANK(Zakázka!U138),CHAR(32),Zakázka!U138) ->  | H125: =IF(ISBLANK(Zakázka!S138),CHAR(32),Zakázka!S138) ->  | I125: =IF(ISBLANK(Zakázka!E138),CHAR(32),(Zakázka!$I$12)) ->  | L125: =IF(ISBLANK(Zakázka!BA138),CHAR(32),Zakázka!BA138) -> 
